{"text_format":"1","workbook":"xlsx","n_sheets":7,"sheets":["menu","declaration","declarationrep","analyse","variables","intervenant","piecesderechange"],"not_rendered":{"charts":0,"images":1,"macros":1,"external_links":0,"defined_names":16,"comments":0,"pivot_tables":0},"unopened":[],"bounds":{"document_bytes":16777216,"sheet_cells":100000,"rows_first":2000,"rows_last":500,"rows_between":2000,"halvings":0,"cell_chars":16384,"cell_head_chars":4096},"cells_cut":0,"cells_raw":0,"read":"whole","date_system":"1900"}

{"sheet":"menu","index":0,"n_rows":40,"n_cols":12,"rows_kept":40,"cut":false,"hidden":false,"merged":[]}
[]
[]
[]
[]
[]
[]
[]
[]
[]
[]
[]
[]
[]
[]
[]
[]
[]
[]
[]
[]
[]
[]
[]
[]
[]
[]
[]
[]
[]
[]
[]
[]
[]
[null,null,null,null,null,null,null,null,null,null,"REALISE PAR KISYLYCZKO MAXIME"]
[]
[]
[]
[]
[]
[null,null,null,null,null,null,null,null,null,null,null,"x  "]

{"sheet":"declaration","index":1,"n_rows":1092,"n_cols":16,"rows_kept":1092,"cut":false,"hidden":false,"merged":[]}
["machine defaillante","type de panne","heure d'arret","jour d'arret","reparation interne","reparation externe","pannes",null,null,null,null,null,null,null,null,{"$f":" A1 & \" panne \" & B1 & \" type \" & G1  &  \" le \" & D1  & \" a \" & C1","v":"machine defaillante panne type de panne type pannes le jour d'arret a heure d'arret"}]
[]
["MAL 90 Kg 1 ","electrique","08:00:00","2015-12-10","X",null,"defaut d'isolement",null,null,null,null,null,null,null,null,{"$f":" A3 & \" panne \" & B3 & \" type \" & G3  &  \" le \" & D3  & \" a \" & C3","v":"MAL 90 Kg 1  panne electrique type defaut d'isolement le 42348 a 0.333333333333333"}]
["Calandreuse","mecanique","12:00:00","2016-05-04","X",null,"verin hs ",null,null,null,null,null,null,null,null,"Calandreuse panne mecanique type verin hs  le 42494 a 0.5"]
["Sechoir 2","pneumatique","16:30:00","12\\11\\14","X",null,"distributeur hs ",null,null,null,null,null,null,null,null,"Sechoir 2 panne pneumatique type distributeur hs  le 12\\11\\14 a 0.6875"]
["MAL 90 Kg 2 ","vapeur","19:02:00","18\\11\\11","X",null,"electrovanne HS",null,null,null,null,null,null,null,null,"MAL 90 Kg 2  panne vapeur type electrovanne HS le 18\\11\\11 a 0.793055555555556"]
["MAL 90 Kg 2 ","vapeur","19:02:00","18\\11\\11",null,"X","electrovanne HS",null,null,null,null,null,null,null,null,"MAL 90 Kg 2  panne vapeur type electrovanne HS le 18\\11\\11 a 0.793055555555556"]
["Sechoir 1","mecanique","18:09:00","19/11/11","X",null,"objet coîncé ",null,null,null,null,null,null,null,null,"Sechoir 1 panne mecanique type objet coîncé  le 19/11/11 a 0.75625"]
["MAL 25 Kg","mecanique","18:09:00","19/11/11","X",null,"verin hs ",null,null,null,null,null,null,null,null,"MAL 25 Kg panne mecanique type verin hs  le 19/11/11 a 0.75625"]
["Sechoir 3","vapeur","12:56:00","2024-12-03","X",null,"temperature trop basse",null,null,null,null,null,null,null,null,"Sechoir 3 panne vapeur type temperature trop basse le 45629 a 0.538888888888889"]
["Calandreuse","pneumatique","12:54:00","2020-12-03",null,"X","pression trop faible",null,null,null,null,null,null,null,null,"Calandreuse panne pneumatique type pression trop faible le 44168 a 0.5375"]
["Sechoir 2","pneumatique","14:55:00","2013-11-12","X",null,"probleme distributeur",null,null,null,null,null,null,null,null,"Sechoir 2 panne pneumatique type probleme distributeur le 41590 a 0.621527777777778"]
["MAL 90 Kg 2 ","vapeur","14:06:00","2012-11-12",null,"X","probleme benin (depannage < 5 min) ",null,null,null,null,null,null,null,null,"MAL 90 Kg 2  panne vapeur type probleme benin (depannage < 5 min)  le 41225 a 0.5875"]
["MAL 90 Kg 1 ","mecanique","14:04:00","2012-11-12",null,"X","proleme de bandes",null,null,null,null,null,null,null,null,"MAL 90 Kg 1  panne mecanique type proleme de bandes le 41225 a 0.586111111111111"]
[null,null,null,null,null,null,null,null,null,null,null,null,null,null,null," panne  type  le  a "]
[null,null,null,null,null,null,null,null,null,null,null,null,null,null,null," panne  type  le  a "]
[null,null,null,null,null,null,null,null,null,null,null,null,null,null,null," panne  type  le  a "]
[null,null,null,null,null,null,null,null,null,null,null,null,null,null,null," panne  type  le  a "]
[null,null,null,null,null,null,null,null,null,null,null,null,null,null,null," panne  type  le  a "]
[null,null,null,null,null,null,null,null,null,null,null,null,null,null,null," panne  type  le  a "]
[null,null,null,null,null,null,null,null,null,null,null,null,null,null,null," panne  type  le  a "]
[null,null,null,null,null,null,null,null,null,null,null,null,null,null,null," panne  type  le  a "]
[null,null,null,null,null,null,null,null,null,null,null,null,null,null,null," panne  type  le  a "]
[null,null,null,null,null,null,null,null,null,null,null,null,null,null,null," panne  type  le  a "]
[null,null,null,null,null,null,null,null,null,null,null,null,null,null,null," panne  type  le  a "]
[null,null,null,null,null,null,null,null,null,null,null,null,null,null,null," panne  type  le  a "]
[null,null,null,null,null,null,null,null,null,null,null,null,null,null,null," panne  type  le  a "]
[null,null,null,null,null,null,null,null,null,null,null,null,null,null,null," panne  type  le  a "]
[null,null,null,null,null,null,null,null,null,null,null,null,null,null,null," panne  type  le  a "]
[null,null,null,null,null,null,null,null,null,null,null,null,null,null,null," panne  type  le  a "]
[null,null,null,null,null,null,null,null,null,null,null,null,null,null,null," panne  type  le  a "]
[null,null,null,null,null,null,null,null,null,null,null,null,null,null,null," panne  type  le  a "]
[null,null,null,null,null,null,null,null,null,null,null,null,null,null,null," panne  type  le  a "]
[null,null,null,null,null,null,null,null,null,null,null,null,null,null,null," panne  type  le  a "]
[null,null,null,null,null,null,null,null,null,null,null,null,null,null,null," panne  type  le  a "]
[null,null,null,null,null,null,null,null,null,null,null,null,null,null,null," panne  type  le  a "]
[null,null,null,null,null,null,null,null,null,null,null,null,null,null,null," panne  type  le  a "]
[null,null,null,null,null,null,null,null,null,null,null,null,null,null,null," panne  type  le  a "]
[null,null,null,null,null,null,null,null,null,null,null,null,null,null,null," panne  type  le  a "]
[null,null,null,null,null,null,null,null,null,null,null,null,null,null,null," panne  type  le  a "]
[null,null,null,null,null,null,null,null,null,null,null,null,null,null,null," panne  type  le  a "]
[null,null,null,null,null,null,null,null,null,null,null,null,null,null,null," panne  type  le  a "]
[null,null,null,null,null,null,null,null,null,null,null,null,null,null,null," panne  type  le  a "]
[null,null,null,null,null,null,null,null,null,null,null,null,null,null,null," panne  type  le  a "]
[null,null,null,null,null,null,null,null,null,null,null,null,null,null,null," panne  type  le  a "]
[null,null,null,null,null,null,null,null,null,null,null,null,null,null,null," panne  type  le  a "]
[null,null,null,null,null,null,null,null,null,null,null,null,null,null,null," panne  type  le  a "]
[null,null,null,null,null,null,null,null,null,null,null,null,null,null,null," panne  type  le  a "]
[null,null,null,null,null,null,null,null,null,null,null,null,null,null,null," panne  type  le  a "]
[null,null,null,null,null,null,null,null,null,null,null,null,null,null,null," panne  type  le  a "]
[null,null,null,null,null,null,null,null,null,null,null,null,null,null,null," panne  type  le  a "]
[null,null,null,null,null,null,null,null,null,null,null,null,null,null,null," panne  type  le  a "]
[null,null,null,null,null,null,null,null,null,null,null,null,null,null,null," panne  type  le  a "]
[null,null,null,null,null,null,null,null,null,null,null,null,null,null,null," panne  type  le  a "]
[null,null,null,null,null,null,null,null,null,null,null,null,null,null,null," panne  type  le  a "]
[null,null,null,null,null,null,null,null,null,null,null,null,null,null,null," panne  type  le  a "]
[null,null,null,null,null,null,null,null,null,null,null,null,null,null,null," panne  type  le  a "]
[null,null,null,null,null,null,null,null,null,null,null,null,null,null,null," panne  type  le  a "]
[null,null,null,null,null,null,null,null,null,null,null,null,null,null,null," panne  type  le  a "]
[null,null,null,null,null,null,null,null,null,null,null,null,null,null,null," panne  type  le  a "]
[null,null,null,null,null,null,null,null,null,null,null,null,null,null,null," panne  type  le  a "]
[null,null,null,null,null,null,null,null,null,null,null,null,null,null,null," panne  type  le  a "]
[null,null,null,null,null,null,null,null,null,null,null,null,null,null,null," panne  type  le  a "]
[null,null,null,null,null,null,null,null,null,null,null,null,null,null,null," panne  type  le  a "]
[null,null,null,null,null,null,null,null,null,null,null,null,null,null,null," panne  type  le  a "]
[null,null,null,null,null,null,null,null,null,null,null,null,null,null,null," panne  type  le  a "]
[null,null,null,null,null,null,null,null,null,null,null,null,null,null,null," panne  type  le  a "]
[null,null,null,null,null,null,null,null,null,null,null,null,null,null,null," panne  type  le  a "]
[null,null,null,null,null,null,null,null,null,null,null,null,null,null,null,{"$f":" A69 & \" panne \" & B69 & \" type \" & G69  &  \" le \" & D69  & \" a \" & C69","v":" panne  type  le  a "}]
[null,null,null,null,null,null,null,null,null,null,null,null,null,null,null," panne  type  le  a "]
[null,null,null,null,null,null,null,null,null,null,null,null,null,null,null," panne  type  le  a "]
[null,null,null,null,null,null,null,null,null,null,null,null,null,null,null," panne  type  le  a "]
[null,null,null,null,null,null,null,null,null,null,null,null,null,null,null," panne  type  le  a "]
[null,null,null,null,null,null,null,null,null,null,null,null,null,null,null," panne  type  le  a "]
[null,null,null,null,null,null,null,null,null,null,null,null,null,null,null," panne  type  le  a "]
[null,null,null,null,null,null,null,null,null,null,null,null,null,null,null," panne  type  le  a "]
[null,null,null,null,null,null,null,null,null,null,null,null,null,null,null," panne  type  le  a "]
[null,null,null,null,null,null,null,null,null,null,null,null,null,null,null," panne  type  le  a "]
[null,null,null,null,null,null,null,null,null,null,null,null,null,null,null," panne  type  le  a "]
[null,null,null,null,null,null,null,null,null,null,null,null,null,null,null," panne  type  le  a "]
[null,null,null,null,null,null,null,null,null,null,null,null,null,null,null," panne  type  le  a "]
[null,null,null,null,null,null,null,null,null,null,null,null,null,null,null," panne  type  le  a "]
[null,null,null,null,null,null,null,null,null,null,null,null,null,null,null," panne  type  le  a "]
[null,null,null,null,null,null,null,null,null,null,null,null,null,null,null," panne  type  le  a "]
[null,null,null,null,null,null,null,null,null,null,null,null,null,null,null," panne  type  le  a "]
[null,null,null,null,null,null,null,null,null,null,null,null,null,null,null," panne  type  le  a "]
[null,null,null,null,null,null,null,null,null,null,null,null,null,null,null," panne  type  le  a "]
[null,null,null,null,null,null,null,null,null,null,null,null,null,null,null," panne  type  le  a "]
[null,null,null,null,null,null,null,null,null,null,null,null,null,null,null," panne  type  le  a "]
[null,null,null,null,null,null,null,null,null,null,null,null,null,null,null," panne  type  le  a "]
[null,null,null,null,null,null,null,null,null,null,null,null,null,null,null," panne  type  le  a "]
[null,null,null,null,null,null,null,null,null,null,null,null,null,null,null," panne  type  le  a "]
[null,null,null,null,null,null,null,null,null,null,null,null,null,null,null," panne  type  le  a "]
[null,null,null,null,null,null,null,null,null,null,null,null,null,null,null," panne  type  le  a "]
[null,null,null,null,null,null,null,null,null,null,null,null,null,null,null," panne  type  le  a "]
[null,null,null,null,null,null,null,null,null,null,null,null,null,null,null," panne  type  le  a "]
[null,null,null,null,null,null,null,null,null,null,null,null,null,null,null," panne  type  le  a "]
[null,null,null,null,null,null,null,null,null,null,null,null,null,null,null," panne  type  le  a "]
[null,null,null,null,null,null,null,null,null,null,null,null,null,null,null," panne  type  le  a "]
[null,null,null,null,null,null,null,null,null,null,null,null,null,null,null," panne  type  le  a "]
[null,null,null,null,null,null,null,null,null,null,null,null,null,null,null," panne  type  le  a "]
[null,null,null,null,null,null,null,null,null,null,null,null,null,null,null," panne  type  le  a "]
[null,null,null,null,null,null,null,null,null,null,null,null,null,null,null," panne  type  le  a "]
[null,null,null,null,null,null,null,null,null,null,null,null,null,null,null," panne  type  le  a "]
[null,null,null,null,null,null,null,null,null,null,null,null,null,null,null," panne  type  le  a "]
[null,null,null,null,null,null,null,null,null,null,null,null,null,null,null," panne  type  le  a "]
[null,null,null,null,null,null,null,null,null,null,null,null,null,null,null," panne  type  le  a "]
[null,null,null,null,null,null,null,null,null,null,null,null,null,null,null," panne  type  le  a "]
[null,null,null,null,null,null,null,null,null,null,null,null,null,null,null," panne  type  le  a "]
[null,null,null,null,null,null,null,null,null,null,null,null,null,null,null," panne  type  le  a "]
[null,null,null,null,null,null,null,null,null,null,null,null,null,null,null," panne  type  le  a "]
[null,null,null,null,null,null,null,null,null,null,null,null,null,null,null," panne  type  le  a "]
[null,null,null,null,null,null,null,null,null,null,null,null,null,null,null," panne  type  le  a "]
[null,null,null,null,null,null,null,null,null,null,null,null,null,null,null," panne  type  le  a "]
[null,null,null,null,null,null,null,null,null,null,null,null,null,null,null," panne  type  le  a "]
[null,null,null,null,null,null,null,null,null,null,null,null,null,null,null," panne  type  le  a "]
[null,null,null,null,null,null,null,null,null,null,null,null,null,null,null," panne  type  le  a "]
[null,null,null,null,null,null,null,null,null,null,null,null,null,null,null," panne  type  le  a "]
[null,null,null,null,null,null,null,null,null,null,null,null,null,null,null," panne  type  le  a "]
[null,null,null,null,null,null,null,null,null,null,null,null,null,null,null," panne  type  le  a "]
[null,null,null,null,null,null,null,null,null,null,null,null,null,null,null," panne  type  le  a "]
[null,null,null,null,null,null,null,null,null,null,null,null,null,null,null," panne  type  le  a "]
[null,null,null,null,null,null,null,null,null,null,null,null,null,null,null," panne  type  le  a "]
[null,null,null,null,null,null,null,null,null,null,null,null,null,null,null," panne  type  le  a "]
[null,null,null,null,null,null,null,null,null,null,null,null,null,null,null," panne  type  le  a "]
[null,null,null,null,null,null,null,null,null,null,null,null,null,null,null," panne  type  le  a "]
[null,null,null,null,null,null,null,null,null,null,null,null,null,null,null," panne  type  le  a "]
[null,null,null,null,null,null,null,null,null,null,null,null,null,null,null," panne  type  le  a "]
[null,null,null,null,null,null,null,null,null,null,null,null,null,null,null," panne  type  le  a "]
[null,null,null,null,null,null,null,null,null,null,null,null,null,null,null," panne  type  le  a "]
[null,null,null,null,null,null,null,null,null,null,null,null,null,null,null," panne  type  le  a "]
[null,null,null,null,null,null,null,null,null,null,null,null,null,null,null," panne  type  le  a "]
[null,null,null,null,null,null,null,null,null,null,null,null,null,null,null,{"$f":" A133 & \" panne \" & B133 & \" type \" & G133  &  \" le \" & D133  & \" a \" & C133","v":" panne  type  le  a "}]
[null,null,null,null,null,null,null,null,null,null,null,null,null,null,null," panne  type  le  a "]
[null,null,null,null,null,null,null,null,null,null,null,null,null,null,null," panne  type  le  a "]
[null,null,null,null,null,null,null,null,null,null,null,null,null,null,null," panne  type  le  a "]
[null,null,null,null,null,null,null,null,null,null,null,null,null,null,null," panne  type  le  a "]
[null,null,null,null,null,null,null,null,null,null,null,null,null,null,null," panne  type  le  a "]
[null,null,null,null,null,null,null,null,null,null,null,null,null,null,null," panne  type  le  a "]
[null,null,null,null,null,null,null,null,null,null,null,null,null,null,null," panne  type  le  a "]
[null,null,null,null,null,null,null,null,null,null,null,null,null,null,null," panne  type  le  a "]
[null,null,null,null,null,null,null,null,null,null,null,null,null,null,null," panne  type  le  a "]
[null,null,null,null,null,null,null,null,null,null,null,null,null,null,null," panne  type  le  a "]
[null,null,null,null,null,null,null,null,null,null,null,null,null,null,null," panne  type  le  a "]
[null,null,null,null,null,null,null,null,null,null,null,null,null,null,null," panne  type  le  a "]
[null,null,null,null,null,null,null,null,null,null,null,null,null,null,null," panne  type  le  a "]
[null,null,null,null,null,null,null,null,null,null,null,null,null,null,null," panne  type  le  a "]
[null,null,null,null,null,null,null,null,null,null,null,null,null,null,null," panne  type  le  a "]
[null,null,null,null,null,null,null,null,null,null,null,null,null,null,null," panne  type  le  a "]
[null,null,null,null,null,null,null,null,null,null,null,null,null,null,null," panne  type  le  a "]
[null,null,null,null,null,null,null,null,null,null,null,null,null,null,null," panne  type  le  a "]
[null,null,null,null,null,null,null,null,null,null,null,null,null,null,null," panne  type  le  a "]
[null,null,null,null,null,null,null,null,null,null,null,null,null,null,null," panne  type  le  a "]
[null,null,null,null,null,null,null,null,null,null,null,null,null,null,null," panne  type  le  a "]
[null,null,null,null,null,null,null,null,null,null,null,null,null,null,null," panne  type  le  a "]
[null,null,null,null,null,null,null,null,null,null,null,null,null,null,null," panne  type  le  a "]
[null,null,null,null,null,null,null,null,null,null,null,null,null,null,null," panne  type  le  a "]
[null,null,null,null,null,null,null,null,null,null,null,null,null,null,null," panne  type  le  a "]
[null,null,null,null,null,null,null,null,null,null,null,null,null,null,null," panne  type  le  a "]
[null,null,null,null,null,null,null,null,null,null,null,null,null,null,null," panne  type  le  a "]
[null,null,null,null,null,null,null,null,null,null,null,null,null,null,null," panne  type  le  a "]
[null,null,null,null,null,null,null,null,null,null,null,null,null,null,null," panne  type  le  a "]
[null,null,null,null,null,null,null,null,null,null,null,null,null,null,null," panne  type  le  a "]
[null,null,null,null,null,null,null,null,null,null,null,null,null,null,null," panne  type  le  a "]
[null,null,null,null,null,null,null,null,null,null,null,null,null,null,null," panne  type  le  a "]
[null,null,null,null,null,null,null,null,null,null,null,null,null,null,null," panne  type  le  a "]
[null,null,null,null,null,null,null,null,null,null,null,null,null,null,null," panne  type  le  a "]
[null,null,null,null,null,null,null,null,null,null,null,null,null,null,null," panne  type  le  a "]
[null,null,null,null,null,null,null,null,null,null,null,null,null,null,null," panne  type  le  a "]
[null,null,null,null,null,null,null,null,null,null,null,null,null,null,null," panne  type  le  a "]
[null,null,null,null,null,null,null,null,null,null,null,null,null,null,null," panne  type  le  a "]
[null,null,null,null,null,null,null,null,null,null,null,null,null,null,null," panne  type  le  a "]
[null,null,null,null,null,null,null,null,null,null,null,null,null,null,null," panne  type  le  a "]
[null,null,null,null,null,null,null,null,null,null,null,null,null,null,null," panne  type  le  a "]
[null,null,null,null,null,null,null,null,null,null,null,null,null,null,null," panne  type  le  a "]
[null,null,null,null,null,null,null,null,null,null,null,null,null,null,null," panne  type  le  a "]
[null,null,null,null,null,null,null,null,null,null,null,null,null,null,null," panne  type  le  a "]
[null,null,null,null,null,null,null,null,null,null,null,null,null,null,null," panne  type  le  a "]
[null,null,null,null,null,null,null,null,null,null,null,null,null,null,null," panne  type  le  a "]
[null,null,null,null,null,null,null,null,null,null,null,null,null,null,null," panne  type  le  a "]
[null,null,null,null,null,null,null,null,null,null,null,null,null,null,null," panne  type  le  a "]
[null,null,null,null,null,null,null,null,null,null,null,null,null,null,null," panne  type  le  a "]
[null,null,null,null,null,null,null,null,null,null,null,null,null,null,null," panne  type  le  a "]
[null,null,null,null,null,null,null,null,null,null,null,null,null,null,null," panne  type  le  a "]
[null,null,null,null,null,null,null,null,null,null,null,null,null,null,null," panne  type  le  a "]
[null,null,null,null,null,null,null,null,null,null,null,null,null,null,null," panne  type  le  a "]
[null,null,null,null,null,null,null,null,null,null,null,null,null,null,null," panne  type  le  a "]
[null,null,null,null,null,null,null,null,null,null,null,null,null,null,null," panne  type  le  a "]
[null,null,null,null,null,null,null,null,null,null,null,null,null,null,null," panne  type  le  a "]
[null,null,null,null,null,null,null,null,null,null,null,null,null,null,null," panne  type  le  a "]
[null,null,null,null,null,null,null,null,null,null,null,null,null,null,null," panne  type  le  a "]
[null,null,null,null,null,null,null,null,null,null,null,null,null,null,null," panne  type  le  a "]
[null,null,null,null,null,null,null,null,null,null,null,null,null,null,null," panne  type  le  a "]
[null,null,null,null,null,null,null,null,null,null,null,null,null,null,null," panne  type  le  a "]
[null,null,null,null,null,null,null,null,null,null,null,null,null,null,null," panne  type  le  a "]
[null,null,null,null,null,null,null,null,null,null,null,null,null,null,null," panne  type  le  a "]
[null,null,null,null,null,null,null,null,null,null,null,null,null,null,null,{"$f":" A197 & \" panne \" & B197 & \" type \" & G197  &  \" le \" & D197  & \" a \" & C197","v":" panne  type  le  a "}]
[null,null,null,null,null,null,null,null,null,null,null,null,null,null,null," panne  type  le  a "]
[null,null,null,null,null,null,null,null,null,null,null,null,null,null,null," panne  type  le  a "]
[null,null,null,null,null,null,null,null,null,null,null,null,null,null,null," panne  type  le  a "]
[null,null,null,null,null,null,null,null,null,null,null,null,null,null,null," panne  type  le  a "]
[null,null,null,null,null,null,null,null,null,null,null,null,null,null,null," panne  type  le  a "]
[null,null,null,null,null,null,null,null,null,null,null,null,null,null,null," panne  type  le  a "]
[null,null,null,null,null,null,null,null,null,null,null,null,null,null,null," panne  type  le  a "]
[null,null,null,null,null,null,null,null,null,null,null,null,null,null,null," panne  type  le  a "]
[null,null,null,null,null,null,null,null,null,null,null,null,null,null,null," panne  type  le  a "]
[null,null,null,null,null,null,null,null,null,null,null,null,null,null,null," panne  type  le  a "]
[null,null,null,null,null,null,null,null,null,null,null,null,null,null,null," panne  type  le  a "]
[null,null,null,null,null,null,null,null,null,null,null,null,null,null,null," panne  type  le  a "]
[null,null,null,null,null,null,null,null,null,null,null,null,null,null,null," panne  type  le  a "]
[null,null,null,null,null,null,null,null,null,null,null,null,null,null,null," panne  type  le  a "]
[null,null,null,null,null,null,null,null,null,null,null,null,null,null,null," panne  type  le  a "]
[null,null,null,null,null,null,null,null,null,null,null,null,null,null,null," panne  type  le  a "]
[null,null,null,null,null,null,null,null,null,null,null,null,null,null,null," panne  type  le  a "]
[null,null,null,null,null,null,null,null,null,null,null,null,null,null,null," panne  type  le  a "]
[null,null,null,null,null,null,null,null,null,null,null,null,null,null,null," panne  type  le  a "]
[null,null,null,null,null,null,null,null,null,null,null,null,null,null,null," panne  type  le  a "]
[null,null,null,null,null,null,null,null,null,null,null,null,null,null,null," panne  type  le  a "]
[null,null,null,null,null,null,null,null,null,null,null,null,null,null,null," panne  type  le  a "]
[null,null,null,null,null,null,null,null,null,null,null,null,null,null,null," panne  type  le  a "]
[null,null,null,null,null,null,null,null,null,null,null,null,null,null,null," panne  type  le  a "]
[null,null,null,null,null,null,null,null,null,null,null,null,null,null,null," panne  type  le  a "]
[null,null,null,null,null,null,null,null,null,null,null,null,null,null,null," panne  type  le  a "]
[null,null,null,null,null,null,null,null,null,null,null,null,null,null,null," panne  type  le  a "]
[null,null,null,null,null,null,null,null,null,null,null,null,null,null,null," panne  type  le  a "]
[null,null,null,null,null,null,null,null,null,null,null,null,null,null,null," panne  type  le  a "]
[null,null,null,null,null,null,null,null,null,null,null,null,null,null,null," panne  type  le  a "]
[null,null,null,null,null,null,null,null,null,null,null,null,null,null,null," panne  type  le  a "]
[null,null,null,null,null,null,null,null,null,null,null,null,null,null,null," panne  type  le  a "]
[null,null,null,null,null,null,null,null,null,null,null,null,null,null,null," panne  type  le  a "]
[null,null,null,null,null,null,null,null,null,null,null,null,null,null,null," panne  type  le  a "]
[null,null,null,null,null,null,null,null,null,null,null,null,null,null,null," panne  type  le  a "]
[null,null,null,null,null,null,null,null,null,null,null,null,null,null,null," panne  type  le  a "]
[null,null,null,null,null,null,null,null,null,null,null,null,null,null,null," panne  type  le  a "]
[null,null,null,null,null,null,null,null,null,null,null,null,null,null,null," panne  type  le  a "]
[null,null,null,null,null,null,null,null,null,null,null,null,null,null,null," panne  type  le  a "]
[null,null,null,null,null,null,null,null,null,null,null,null,null,null,null," panne  type  le  a "]
[null,null,null,null,null,null,null,null,null,null,null,null,null,null,null," panne  type  le  a "]
[null,null,null,null,null,null,null,null,null,null,null,null,null,null,null," panne  type  le  a "]
[null,null,null,null,null,null,null,null,null,null,null,null,null,null,null," panne  type  le  a "]
[null,null,null,null,null,null,null,null,null,null,null,null,null,null,null," panne  type  le  a "]
[null,null,null,null,null,null,null,null,null,null,null,null,null,null,null," panne  type  le  a "]
[null,null,null,null,null,null,null,null,null,null,null,null,null,null,null," panne  type  le  a "]
[null,null,null,null,null,null,null,null,null,null,null,null,null,null,null," panne  type  le  a "]
[null,null,null,null,null,null,null,null,null,null,null,null,null,null,null," panne  type  le  a "]
[null,null,null,null,null,null,null,null,null,null,null,null,null,null,null," panne  type  le  a "]
[null,null,null,null,null,null,null,null,null,null,null,null,null,null,null," panne  type  le  a "]
[null,null,null,null,null,null,null,null,null,null,null,null,null,null,null," panne  type  le  a "]
[null,null,null,null,null,null,null,null,null,null,null,null,null,null,null," panne  type  le  a "]
[null,null,null,null,null,null,null,null,null,null,null,null,null,null,null," panne  type  le  a "]
[null,null,null,null,null,null,null,null,null,null,null,null,null,null,null," panne  type  le  a "]
[null,null,null,null,null,null,null,null,null,null,null,null,null,null,null," panne  type  le  a "]
[null,null,null,null,null,null,null,null,null,null,null,null,null,null,null," panne  type  le  a "]
[null,null,null,null,null,null,null,null,null,null,null,null,null,null,null," panne  type  le  a "]
[null,null,null,null,null,null,null,null,null,null,null,null,null,null,null," panne  type  le  a "]
[null,null,null,null,null,null,null,null,null,null,null,null,null,null,null," panne  type  le  a "]
[null,null,null,null,null,null,null,null,null,null,null,null,null,null,null," panne  type  le  a "]
[null,null,null,null,null,null,null,null,null,null,null,null,null,null,null," panne  type  le  a "]
[null,null,null,null,null,null,null,null,null,null,null,null,null,null,null," panne  type  le  a "]
[null,null,null,null,null,null,null,null,null,null,null,null,null,null,null," panne  type  le  a "]
[null,null,null,null,null,null,null,null,null,null,null,null,null,null,null,{"$f":" A261 & \" panne \" & B261 & \" type \" & G261  &  \" le \" & D261  & \" a \" & C261","v":" panne  type  le  a "}]
[null,null,null,null,null,null,null,null,null,null,null,null,null,null,null," panne  type  le  a "]
[null,null,null,null,null,null,null,null,null,null,null,null,null,null,null," panne  type  le  a "]
[null,null,null,null,null,null,null,null,null,null,null,null,null,null,null," panne  type  le  a "]
[null,null,null,null,null,null,null,null,null,null,null,null,null,null,null," panne  type  le  a "]
[null,null,null,null,null,null,null,null,null,null,null,null,null,null,null," panne  type  le  a "]
[null,null,null,null,null,null,null,null,null,null,null,null,null,null,null," panne  type  le  a "]
[null,null,null,null,null,null,null,null,null,null,null,null,null,null,null," panne  type  le  a "]
[null,null,null,null,null,null,null,null,null,null,null,null,null,null,null," panne  type  le  a "]
[null,null,null,null,null,null,null,null,null,null,null,null,null,null,null," panne  type  le  a "]
[null,null,null,null,null,null,null,null,null,null,null,null,null,null,null," panne  type  le  a "]
[null,null,null,null,null,null,null,null,null,null,null,null,null,null,null," panne  type  le  a "]
[null,null,null,null,null,null,null,null,null,null,null,null,null,null,null," panne  type  le  a "]
[null,null,null,null,null,null,null,null,null,null,null,null,null,null,null," panne  type  le  a "]
[null,null,null,null,null,null,null,null,null,null,null,null,null,null,null," panne  type  le  a "]
[null,null,null,null,null,null,null,null,null,null,null,null,null,null,null," panne  type  le  a "]
[null,null,null,null,null,null,null,null,null,null,null,null,null,null,null," panne  type  le  a "]
[null,null,null,null,null,null,null,null,null,null,null,null,null,null,null," panne  type  le  a "]
[null,null,null,null,null,null,null,null,null,null,null,null,null,null,null," panne  type  le  a "]
[null,null,null,null,null,null,null,null,null,null,null,null,null,null,null," panne  type  le  a "]
[null,null,null,null,null,null,null,null,null,null,null,null,null,null,null," panne  type  le  a "]
[null,null,null,null,null,null,null,null,null,null,null,null,null,null,null," panne  type  le  a "]
[null,null,null,null,null,null,null,null,null,null,null,null,null,null,null," panne  type  le  a "]
[null,null,null,null,null,null,null,null,null,null,null,null,null,null,null," panne  type  le  a "]
[null,null,null,null,null,null,null,null,null,null,null,null,null,null,null," panne  type  le  a "]
[null,null,null,null,null,null,null,null,null,null,null,null,null,null,null," panne  type  le  a "]
[null,null,null,null,null,null,null,null,null,null,null,null,null,null,null," panne  type  le  a "]
[null,null,null,null,null,null,null,null,null,null,null,null,null,null,null," panne  type  le  a "]
[null,null,null,null,null,null,null,null,null,null,null,null,null,null,null," panne  type  le  a "]
[null,null,null,null,null,null,null,null,null,null,null,null,null,null,null," panne  type  le  a "]
[null,null,null,null,null,null,null,null,null,null,null,null,null,null,null," panne  type  le  a "]
[null,null,null,null,null,null,null,null,null,null,null,null,null,null,null," panne  type  le  a "]
[null,null,null,null,null,null,null,null,null,null,null,null,null,null,null," panne  type  le  a "]
[null,null,null,null,null,null,null,null,null,null,null,null,null,null,null," panne  type  le  a "]
[null,null,null,null,null,null,null,null,null,null,null,null,null,null,null," panne  type  le  a "]
[null,null,null,null,null,null,null,null,null,null,null,null,null,null,null," panne  type  le  a "]
[null,null,null,null,null,null,null,null,null,null,null,null,null,null,null," panne  type  le  a "]
[null,null,null,null,null,null,null,null,null,null,null,null,null,null,null," panne  type  le  a "]
[null,null,null,null,null,null,null,null,null,null,null,null,null,null,null," panne  type  le  a "]
[null,null,null,null,null,null,null,null,null,null,null,null,null,null,null," panne  type  le  a "]
[null,null,null,null,null,null,null,null,null,null,null,null,null,null,null," panne  type  le  a "]
[null,null,null,null,null,null,null,null,null,null,null,null,null,null,null," panne  type  le  a "]
[null,null,null,null,null,null,null,null,null,null,null,null,null,null,null," panne  type  le  a "]
[null,null,null,null,null,null,null,null,null,null,null,null,null,null,null," panne  type  le  a "]
[null,null,null,null,null,null,null,null,null,null,null,null,null,null,null," panne  type  le  a "]
[null,null,null,null,null,null,null,null,null,null,null,null,null,null,null," panne  type  le  a "]
[null,null,null,null,null,null,null,null,null,null,null,null,null,null,null," panne  type  le  a "]
[null,null,null,null,null,null,null,null,null,null,null,null,null,null,null," panne  type  le  a "]
[null,null,null,null,null,null,null,null,null,null,null,null,null,null,null," panne  type  le  a "]
[null,null,null,null,null,null,null,null,null,null,null,null,null,null,null," panne  type  le  a "]
[null,null,null,null,null,null,null,null,null,null,null,null,null,null,null," panne  type  le  a "]
[null,null,null,null,null,null,null,null,null,null,null,null,null,null,null," panne  type  le  a "]
[null,null,null,null,null,null,null,null,null,null,null,null,null,null,null," panne  type  le  a "]
[null,null,null,null,null,null,null,null,null,null,null,null,null,null,null," panne  type  le  a "]
[null,null,null,null,null,null,null,null,null,null,null,null,null,null,null," panne  type  le  a "]
[null,null,null,null,null,null,null,null,null,null,null,null,null,null,null," panne  type  le  a "]
[null,null,null,null,null,null,null,null,null,null,null,null,null,null,null," panne  type  le  a "]
[null,null,null,null,null,null,null,null,null,null,null,null,null,null,null," panne  type  le  a "]
[null,null,null,null,null,null,null,null,null,null,null,null,null,null,null," panne  type  le  a "]
[null,null,null,null,null,null,null,null,null,null,null,null,null,null,null," panne  type  le  a "]
[null,null,null,null,null,null,null,null,null,null,null,null,null,null,null," panne  type  le  a "]
[null,null,null,null,null,null,null,null,null,null,null,null,null,null,null," panne  type  le  a "]
[null,null,null,null,null,null,null,null,null,null,null,null,null,null,null," panne  type  le  a "]
[null,null,null,null,null,null,null,null,null,null,null,null,null,null,null," panne  type  le  a "]
[null,null,null,null,null,null,null,null,null,null,null,null,null,null,null,{"$f":" A325 & \" panne \" & B325 & \" type \" & G325  &  \" le \" & D325  & \" a \" & C325","v":" panne  type  le  a "}]
[null,null,null,null,null,null,null,null,null,null,null,null,null,null,null," panne  type  le  a "]
[null,null,null,null,null,null,null,null,null,null,null,null,null,null,null," panne  type  le  a "]
[null,null,null,null,null,null,null,null,null,null,null,null,null,null,null," panne  type  le  a "]
[null,null,null,null,null,null,null,null,null,null,null,null,null,null,null," panne  type  le  a "]
[null,null,null,null,null,null,null,null,null,null,null,null,null,null,null," panne  type  le  a "]
[null,null,null,null,null,null,null,null,null,null,null,null,null,null,null," panne  type  le  a "]
[null,null,null,null,null,null,null,null,null,null,null,null,null,null,null," panne  type  le  a "]
[null,null,null,null,null,null,null,null,null,null,null,null,null,null,null," panne  type  le  a "]
[null,null,null,null,null,null,null,null,null,null,null,null,null,null,null," panne  type  le  a "]
[null,null,null,null,null,null,null,null,null,null,null,null,null,null,null," panne  type  le  a "]
[null,null,null,null,null,null,null,null,null,null,null,null,null,null,null," panne  type  le  a "]
[null,null,null,null,null,null,null,null,null,null,null,null,null,null,null," panne  type  le  a "]
[null,null,null,null,null,null,null,null,null,null,null,null,null,null,null," panne  type  le  a "]
[null,null,null,null,null,null,null,null,null,null,null,null,null,null,null," panne  type  le  a "]
[null,null,null,null,null,null,null,null,null,null,null,null,null,null,null," panne  type  le  a "]
[null,null,null,null,null,null,null,null,null,null,null,null,null,null,null," panne  type  le  a "]
[null,null,null,null,null,null,null,null,null,null,null,null,null,null,null," panne  type  le  a "]
[null,null,null,null,null,null,null,null,null,null,null,null,null,null,null," panne  type  le  a "]
[null,null,null,null,null,null,null,null,null,null,null,null,null,null,null," panne  type  le  a "]
[null,null,null,null,null,null,null,null,null,null,null,null,null,null,null," panne  type  le  a "]
[null,null,null,null,null,null,null,null,null,null,null,null,null,null,null," panne  type  le  a "]
[null,null,null,null,null,null,null,null,null,null,null,null,null,null,null," panne  type  le  a "]
[null,null,null,null,null,null,null,null,null,null,null,null,null,null,null," panne  type  le  a "]
[null,null,null,null,null,null,null,null,null,null,null,null,null,null,null," panne  type  le  a "]
[null,null,null,null,null,null,null,null,null,null,null,null,null,null,null," panne  type  le  a "]
[null,null,null,null,null,null,null,null,null,null,null,null,null,null,null," panne  type  le  a "]
[null,null,null,null,null,null,null,null,null,null,null,null,null,null,null," panne  type  le  a "]
[null,null,null,null,null,null,null,null,null,null,null,null,null,null,null," panne  type  le  a "]
[null,null,null,null,null,null,null,null,null,null,null,null,null,null,null," panne  type  le  a "]
[null,null,null,null,null,null,null,null,null,null,null,null,null,null,null," panne  type  le  a "]
[null,null,null,null,null,null,null,null,null,null,null,null,null,null,null," panne  type  le  a "]
[null,null,null,null,null,null,null,null,null,null,null,null,null,null,null," panne  type  le  a "]
[null,null,null,null,null,null,null,null,null,null,null,null,null,null,null," panne  type  le  a "]
[null,null,null,null,null,null,null,null,null,null,null,null,null,null,null," panne  type  le  a "]
[null,null,null,null,null,null,null,null,null,null,null,null,null,null,null," panne  type  le  a "]
[null,null,null,null,null,null,null,null,null,null,null,null,null,null,null," panne  type  le  a "]
[null,null,null,null,null,null,null,null,null,null,null,null,null,null,null," panne  type  le  a "]
[null,null,null,null,null,null,null,null,null,null,null,null,null,null,null," panne  type  le  a "]
[null,null,null,null,null,null,null,null,null,null,null,null,null,null,null," panne  type  le  a "]
[null,null,null,null,null,null,null,null,null,null,null,null,null,null,null," panne  type  le  a "]
[null,null,null,null,null,null,null,null,null,null,null,null,null,null,null," panne  type  le  a "]
[null,null,null,null,null,null,null,null,null,null,null,null,null,null,null," panne  type  le  a "]
[null,null,null,null,null,null,null,null,null,null,null,null,null,null,null," panne  type  le  a "]
[null,null,null,null,null,null,null,null,null,null,null,null,null,null,null," panne  type  le  a "]
[null,null,null,null,null,null,null,null,null,null,null,null,null,null,null," panne  type  le  a "]
[null,null,null,null,null,null,null,null,null,null,null,null,null,null,null," panne  type  le  a "]
[null,null,null,null,null,null,null,null,null,null,null,null,null,null,null," panne  type  le  a "]
[null,null,null,null,null,null,null,null,null,null,null,null,null,null,null," panne  type  le  a "]
[null,null,null,null,null,null,null,null,null,null,null,null,null,null,null," panne  type  le  a "]
[null,null,null,null,null,null,null,null,null,null,null,null,null,null,null," panne  type  le  a "]
[null,null,null,null,null,null,null,null,null,null,null,null,null,null,null," panne  type  le  a "]
[null,null,null,null,null,null,null,null,null,null,null,null,null,null,null," panne  type  le  a "]
[null,null,null,null,null,null,null,null,null,null,null,null,null,null,null," panne  type  le  a "]
[null,null,null,null,null,null,null,null,null,null,null,null,null,null,null," panne  type  le  a "]
[null,null,null,null,null,null,null,null,null,null,null,null,null,null,null," panne  type  le  a "]
[null,null,null,null,null,null,null,null,null,null,null,null,null,null,null," panne  type  le  a "]
[null,null,null,null,null,null,null,null,null,null,null,null,null,null,null," panne  type  le  a "]
[null,null,null,null,null,null,null,null,null,null,null,null,null,null,null," panne  type  le  a "]
[null,null,null,null,null,null,null,null,null,null,null,null,null,null,null," panne  type  le  a "]
[null,null,null,null,null,null,null,null,null,null,null,null,null,null,null," panne  type  le  a "]
[null,null,null,null,null,null,null,null,null,null,null,null,null,null,null," panne  type  le  a "]
[null,null,null,null,null,null,null,null,null,null,null,null,null,null,null," panne  type  le  a "]
[null,null,null,null,null,null,null,null,null,null,null,null,null,null,null," panne  type  le  a "]
[null,null,null,null,null,null,null,null,null,null,null,null,null,null,null,{"$f":" A389 & \" panne \" & B389 & \" type \" & G389  &  \" le \" & D389  & \" a \" & C389","v":" panne  type  le  a "}]
[null,null,null,null,null,null,null,null,null,null,null,null,null,null,null," panne  type  le  a "]
[null,null,null,null,null,null,null,null,null,null,null,null,null,null,null," panne  type  le  a "]
[null,null,null,null,null,null,null,null,null,null,null,null,null,null,null," panne  type  le  a "]
[null,null,null,null,null,null,null,null,null,null,null,null,null,null,null," panne  type  le  a "]
[null,null,null,null,null,null,null,null,null,null,null,null,null,null,null," panne  type  le  a "]
[null,null,null,null,null,null,null,null,null,null,null,null,null,null,null," panne  type  le  a "]
[null,null,null,null,null,null,null,null,null,null,null,null,null,null,null," panne  type  le  a "]
[null,null,null,null,null,null,null,null,null,null,null,null,null,null,null," panne  type  le  a "]
[null,null,null,null,null,null,null,null,null,null,null,null,null,null,null," panne  type  le  a "]
[null,null,null,null,null,null,null,null,null,null,null,null,null,null,null," panne  type  le  a "]
[null,null,null,null,null,null,null,null,null,null,null,null,null,null,null," panne  type  le  a "]
[null,null,null,null,null,null,null,null,null,null,null,null,null,null,null," panne  type  le  a "]
[null,null,null,null,null,null,null,null,null,null,null,null,null,null,null," panne  type  le  a "]
[null,null,null,null,null,null,null,null,null,null,null,null,null,null,null," panne  type  le  a "]
[null,null,null,null,null,null,null,null,null,null,null,null,null,null,null," panne  type  le  a "]
[null,null,null,null,null,null,null,null,null,null,null,null,null,null,null," panne  type  le  a "]
[null,null,null,null,null,null,null,null,null,null,null,null,null,null,null," panne  type  le  a "]
[null,null,null,null,null,null,null,null,null,null,null,null,null,null,null," panne  type  le  a "]
[null,null,null,null,null,null,null,null,null,null,null,null,null,null,null," panne  type  le  a "]
[null,null,null,null,null,null,null,null,null,null,null,null,null,null,null," panne  type  le  a "]
[null,null,null,null,null,null,null,null,null,null,null,null,null,null,null," panne  type  le  a "]
[null,null,null,null,null,null,null,null,null,null,null,null,null,null,null," panne  type  le  a "]
[null,null,null,null,null,null,null,null,null,null,null,null,null,null,null," panne  type  le  a "]
[null,null,null,null,null,null,null,null,null,null,null,null,null,null,null," panne  type  le  a "]
[null,null,null,null,null,null,null,null,null,null,null,null,null,null,null," panne  type  le  a "]
[null,null,null,null,null,null,null,null,null,null,null,null,null,null,null," panne  type  le  a "]
[null,null,null,null,null,null,null,null,null,null,null,null,null,null,null," panne  type  le  a "]
[null,null,null,null,null,null,null,null,null,null,null,null,null,null,null," panne  type  le  a "]
[null,null,null,null,null,null,null,null,null,null,null,null,null,null,null," panne  type  le  a "]
[null,null,null,null,null,null,null,null,null,null,null,null,null,null,null," panne  type  le  a "]
[null,null,null,null,null,null,null,null,null,null,null,null,null,null,null," panne  type  le  a "]
[null,null,null,null,null,null,null,null,null,null,null,null,null,null,null," panne  type  le  a "]
[null,null,null,null,null,null,null,null,null,null,null,null,null,null,null," panne  type  le  a "]
[null,null,null,null,null,null,null,null,null,null,null,null,null,null,null," panne  type  le  a "]
[null,null,null,null,null,null,null,null,null,null,null,null,null,null,null," panne  type  le  a "]
[null,null,null,null,null,null,null,null,null,null,null,null,null,null,null," panne  type  le  a "]
[null,null,null,null,null,null,null,null,null,null,null,null,null,null,null," panne  type  le  a "]
[null,null,null,null,null,null,null,null,null,null,null,null,null,null,null," panne  type  le  a "]
[null,null,null,null,null,null,null,null,null,null,null,null,null,null,null," panne  type  le  a "]
[null,null,null,null,null,null,null,null,null,null,null,null,null,null,null," panne  type  le  a "]
[null,null,null,null,null,null,null,null,null,null,null,null,null,null,null," panne  type  le  a "]
[null,null,null,null,null,null,null,null,null,null,null,null,null,null,null," panne  type  le  a "]
[null,null,null,null,null,null,null,null,null,null,null,null,null,null,null," panne  type  le  a "]
[null,null,null,null,null,null,null,null,null,null,null,null,null,null,null," panne  type  le  a "]
[null,null,null,null,null,null,null,null,null,null,null,null,null,null,null," panne  type  le  a "]
[null,null,null,null,null,null,null,null,null,null,null,null,null,null,null," panne  type  le  a "]
[null,null,null,null,null,null,null,null,null,null,null,null,null,null,null," panne  type  le  a "]
[null,null,null,null,null,null,null,null,null,null,null,null,null,null,null," panne  type  le  a "]
[null,null,null,null,null,null,null,null,null,null,null,null,null,null,null," panne  type  le  a "]
[null,null,null,null,null,null,null,null,null,null,null,null,null,null,null," panne  type  le  a "]
[null,null,null,null,null,null,null,null,null,null,null,null,null,null,null," panne  type  le  a "]
[null,null,null,null,null,null,null,null,null,null,null,null,null,null,null," panne  type  le  a "]
[null,null,null,null,null,null,null,null,null,null,null,null,null,null,null," panne  type  le  a "]
[null,null,null,null,null,null,null,null,null,null,null,null,null,null,null," panne  type  le  a "]
[null,null,null,null,null,null,null,null,null,null,null,null,null,null,null," panne  type  le  a "]
[null,null,null,null,null,null,null,null,null,null,null,null,null,null,null," panne  type  le  a "]
[null,null,null,null,null,null,null,null,null,null,null,null,null,null,null," panne  type  le  a "]
[null,null,null,null,null,null,null,null,null,null,null,null,null,null,null," panne  type  le  a "]
[null,null,null,null,null,null,null,null,null,null,null,null,null,null,null," panne  type  le  a "]
[null,null,null,null,null,null,null,null,null,null,null,null,null,null,null," panne  type  le  a "]
[null,null,null,null,null,null,null,null,null,null,null,null,null,null,null," panne  type  le  a "]
[null,null,null,null,null,null,null,null,null,null,null,null,null,null,null," panne  type  le  a "]
[null,null,null,null,null,null,null,null,null,null,null,null,null,null,null," panne  type  le  a "]
[null,null,null,null,null,null,null,null,null,null,null,null,null,null,null,{"$f":" A453 & \" panne \" & B453 & \" type \" & G453  &  \" le \" & D453  & \" a \" & C453","v":" panne  type  le  a "}]
[null,null,null,null,null,null,null,null,null,null,null,null,null,null,null," panne  type  le  a "]
[null,null,null,null,null,null,null,null,null,null,null,null,null,null,null," panne  type  le  a "]
[null,null,null,null,null,null,null,null,null,null,null,null,null,null,null," panne  type  le  a "]
[null,null,null,null,null,null,null,null,null,null,null,null,null,null,null," panne  type  le  a "]
[null,null,null,null,null,null,null,null,null,null,null,null,null,null,null," panne  type  le  a "]
[null,null,null,null,null,null,null,null,null,null,null,null,null,null,null," panne  type  le  a "]
[null,null,null,null,null,null,null,null,null,null,null,null,null,null,null," panne  type  le  a "]
[null,null,null,null,null,null,null,null,null,null,null,null,null,null,null," panne  type  le  a "]
[null,null,null,null,null,null,null,null,null,null,null,null,null,null,null," panne  type  le  a "]
[null,null,null,null,null,null,null,null,null,null,null,null,null,null,null," panne  type  le  a "]
[null,null,null,null,null,null,null,null,null,null,null,null,null,null,null," panne  type  le  a "]
[null,null,null,null,null,null,null,null,null,null,null,null,null,null,null," panne  type  le  a "]
[null,null,null,null,null,null,null,null,null,null,null,null,null,null,null," panne  type  le  a "]
[null,null,null,null,null,null,null,null,null,null,null,null,null,null,null," panne  type  le  a "]
[null,null,null,null,null,null,null,null,null,null,null,null,null,null,null," panne  type  le  a "]
[null,null,null,null,null,null,null,null,null,null,null,null,null,null,null," panne  type  le  a "]
[null,null,null,null,null,null,null,null,null,null,null,null,null,null,null," panne  type  le  a "]
[null,null,null,null,null,null,null,null,null,null,null,null,null,null,null," panne  type  le  a "]
[null,null,null,null,null,null,null,null,null,null,null,null,null,null,null," panne  type  le  a "]
[null,null,null,null,null,null,null,null,null,null,null,null,null,null,null," panne  type  le  a "]
[null,null,null,null,null,null,null,null,null,null,null,null,null,null,null," panne  type  le  a "]
[null,null,null,null,null,null,null,null,null,null,null,null,null,null,null," panne  type  le  a "]
[null,null,null,null,null,null,null,null,null,null,null,null,null,null,null," panne  type  le  a "]
[null,null,null,null,null,null,null,null,null,null,null,null,null,null,null," panne  type  le  a "]
[null,null,null,null,null,null,null,null,null,null,null,null,null,null,null," panne  type  le  a "]
[null,null,null,null,null,null,null,null,null,null,null,null,null,null,null," panne  type  le  a "]
[null,null,null,null,null,null,null,null,null,null,null,null,null,null,null," panne  type  le  a "]
[null,null,null,null,null,null,null,null,null,null,null,null,null,null,null," panne  type  le  a "]
[null,null,null,null,null,null,null,null,null,null,null,null,null,null,null," panne  type  le  a "]
[null,null,null,null,null,null,null,null,null,null,null,null,null,null,null," panne  type  le  a "]
[null,null,null,null,null,null,null,null,null,null,null,null,null,null,null," panne  type  le  a "]
[null,null,null,null,null,null,null,null,null,null,null,null,null,null,null," panne  type  le  a "]
[null,null,null,null,null,null,null,null,null,null,null,null,null,null,null," panne  type  le  a "]
[null,null,null,null,null,null,null,null,null,null,null,null,null,null,null," panne  type  le  a "]
[null,null,null,null,null,null,null,null,null,null,null,null,null,null,null," panne  type  le  a "]
[null,null,null,null,null,null,null,null,null,null,null,null,null,null,null," panne  type  le  a "]
[null,null,null,null,null,null,null,null,null,null,null,null,null,null,null," panne  type  le  a "]
[null,null,null,null,null,null,null,null,null,null,null,null,null,null,null," panne  type  le  a "]
[null,null,null,null,null,null,null,null,null,null,null,null,null,null,null," panne  type  le  a "]
[null,null,null,null,null,null,null,null,null,null,null,null,null,null,null," panne  type  le  a "]
[null,null,null,null,null,null,null,null,null,null,null,null,null,null,null," panne  type  le  a "]
[null,null,null,null,null,null,null,null,null,null,null,null,null,null,null," panne  type  le  a "]
[null,null,null,null,null,null,null,null,null,null,null,null,null,null,null," panne  type  le  a "]
[null,null,null,null,null,null,null,null,null,null,null,null,null,null,null," panne  type  le  a "]
[null,null,null,null,null,null,null,null,null,null,null,null,null,null,null," panne  type  le  a "]
[null,null,null,null,null,null,null,null,null,null,null,null,null,null,null," panne  type  le  a "]
[null,null,null,null,null,null,null,null,null,null,null,null,null,null,null," panne  type  le  a "]
[null,null,null,null,null,null,null,null,null,null,null,null,null,null,null," panne  type  le  a "]
[null,null,null,null,null,null,null,null,null,null,null,null,null,null,null," panne  type  le  a "]
[null,null,null,null,null,null,null,null,null,null,null,null,null,null,null," panne  type  le  a "]
[null,null,null,null,null,null,null,null,null,null,null,null,null,null,null," panne  type  le  a "]
[null,null,null,null,null,null,null,null,null,null,null,null,null,null,null," panne  type  le  a "]
[null,null,null,null,null,null,null,null,null,null,null,null,null,null,null," panne  type  le  a "]
[null,null,null,null,null,null,null,null,null,null,null,null,null,null,null," panne  type  le  a "]
[null,null,null,null,null,null,null,null,null,null,null,null,null,null,null," panne  type  le  a "]
[null,null,null,null,null,null,null,null,null,null,null,null,null,null,null," panne  type  le  a "]
[null,null,null,null,null,null,null,null,null,null,null,null,null,null,null," panne  type  le  a "]
[null,null,null,null,null,null,null,null,null,null,null,null,null,null,null," panne  type  le  a "]
[null,null,null,null,null,null,null,null,null,null,null,null,null,null,null," panne  type  le  a "]
[null,null,null,null,null,null,null,null,null,null,null,null,null,null,null," panne  type  le  a "]
[null,null,null,null,null,null,null,null,null,null,null,null,null,null,null," panne  type  le  a "]
[null,null,null,null,null,null,null,null,null,null,null,null,null,null,null," panne  type  le  a "]
[null,null,null,null,null,null,null,null,null,null,null,null,null,null,null," panne  type  le  a "]
[null,null,null,null,null,null,null,null,null,null,null,null,null,null,null,{"$f":" A517 & \" panne \" & B517 & \" type \" & G517  &  \" le \" & D517  & \" a \" & C517","v":" panne  type  le  a "}]
[null,null,null,null,null,null,null,null,null,null,null,null,null,null,null," panne  type  le  a "]
[null,null,null,null,null,null,null,null,null,null,null,null,null,null,null," panne  type  le  a "]
[null,null,null,null,null,null,null,null,null,null,null,null,null,null,null," panne  type  le  a "]
[null,null,null,null,null,null,null,null,null,null,null,null,null,null,null," panne  type  le  a "]
[null,null,null,null,null,null,null,null,null,null,null,null,null,null,null," panne  type  le  a "]
[null,null,null,null,null,null,null,null,null,null,null,null,null,null,null," panne  type  le  a "]
[null,null,null,null,null,null,null,null,null,null,null,null,null,null,null," panne  type  le  a "]
[null,null,null,null,null,null,null,null,null,null,null,null,null,null,null," panne  type  le  a "]
[null,null,null,null,null,null,null,null,null,null,null,null,null,null,null," panne  type  le  a "]
[null,null,null,null,null,null,null,null,null,null,null,null,null,null,null," panne  type  le  a "]
[null,null,null,null,null,null,null,null,null,null,null,null,null,null,null," panne  type  le  a "]
[null,null,null,null,null,null,null,null,null,null,null,null,null,null,null," panne  type  le  a "]
[null,null,null,null,null,null,null,null,null,null,null,null,null,null,null," panne  type  le  a "]
[null,null,null,null,null,null,null,null,null,null,null,null,null,null,null," panne  type  le  a "]
[null,null,null,null,null,null,null,null,null,null,null,null,null,null,null," panne  type  le  a "]
[null,null,null,null,null,null,null,null,null,null,null,null,null,null,null," panne  type  le  a "]
[null,null,null,null,null,null,null,null,null,null,null,null,null,null,null," panne  type  le  a "]
[null,null,null,null,null,null,null,null,null,null,null,null,null,null,null," panne  type  le  a "]
[null,null,null,null,null,null,null,null,null,null,null,null,null,null,null," panne  type  le  a "]
[null,null,null,null,null,null,null,null,null,null,null,null,null,null,null," panne  type  le  a "]
[null,null,null,null,null,null,null,null,null,null,null,null,null,null,null," panne  type  le  a "]
[null,null,null,null,null,null,null,null,null,null,null,null,null,null,null," panne  type  le  a "]
[null,null,null,null,null,null,null,null,null,null,null,null,null,null,null," panne  type  le  a "]
[null,null,null,null,null,null,null,null,null,null,null,null,null,null,null," panne  type  le  a "]
[null,null,null,null,null,null,null,null,null,null,null,null,null,null,null," panne  type  le  a "]
[null,null,null,null,null,null,null,null,null,null,null,null,null,null,null," panne  type  le  a "]
[null,null,null,null,null,null,null,null,null,null,null,null,null,null,null," panne  type  le  a "]
[null,null,null,null,null,null,null,null,null,null,null,null,null,null,null," panne  type  le  a "]
[null,null,null,null,null,null,null,null,null,null,null,null,null,null,null," panne  type  le  a "]
[null,null,null,null,null,null,null,null,null,null,null,null,null,null,null," panne  type  le  a "]
[null,null,null,null,null,null,null,null,null,null,null,null,null,null,null," panne  type  le  a "]
[null,null,null,null,null,null,null,null,null,null,null,null,null,null,null," panne  type  le  a "]
[null,null,null,null,null,null,null,null,null,null,null,null,null,null,null," panne  type  le  a "]
[null,null,null,null,null,null,null,null,null,null,null,null,null,null,null," panne  type  le  a "]
[null,null,null,null,null,null,null,null,null,null,null,null,null,null,null," panne  type  le  a "]
[null,null,null,null,null,null,null,null,null,null,null,null,null,null,null," panne  type  le  a "]
[null,null,null,null,null,null,null,null,null,null,null,null,null,null,null," panne  type  le  a "]
[null,null,null,null,null,null,null,null,null,null,null,null,null,null,null," panne  type  le  a "]
[null,null,null,null,null,null,null,null,null,null,null,null,null,null,null," panne  type  le  a "]
[null,null,null,null,null,null,null,null,null,null,null,null,null,null,null," panne  type  le  a "]
[null,null,null,null,null,null,null,null,null,null,null,null,null,null,null," panne  type  le  a "]
[null,null,null,null,null,null,null,null,null,null,null,null,null,null,null," panne  type  le  a "]
[null,null,null,null,null,null,null,null,null,null,null,null,null,null,null," panne  type  le  a "]
[null,null,null,null,null,null,null,null,null,null,null,null,null,null,null," panne  type  le  a "]
[null,null,null,null,null,null,null,null,null,null,null,null,null,null,null," panne  type  le  a "]
[null,null,null,null,null,null,null,null,null,null,null,null,null,null,null," panne  type  le  a "]
[null,null,null,null,null,null,null,null,null,null,null,null,null,null,null," panne  type  le  a "]
[null,null,null,null,null,null,null,null,null,null,null,null,null,null,null," panne  type  le  a "]
[null,null,null,null,null,null,null,null,null,null,null,null,null,null,null," panne  type  le  a "]
[null,null,null,null,null,null,null,null,null,null,null,null,null,null,null," panne  type  le  a "]
[null,null,null,null,null,null,null,null,null,null,null,null,null,null,null," panne  type  le  a "]
[null,null,null,null,null,null,null,null,null,null,null,null,null,null,null," panne  type  le  a "]
[null,null,null,null,null,null,null,null,null,null,null,null,null,null,null," panne  type  le  a "]
[null,null,null,null,null,null,null,null,null,null,null,null,null,null,null," panne  type  le  a "]
[null,null,null,null,null,null,null,null,null,null,null,null,null,null,null," panne  type  le  a "]
[null,null,null,null,null,null,null,null,null,null,null,null,null,null,null," panne  type  le  a "]
[null,null,null,null,null,null,null,null,null,null,null,null,null,null,null," panne  type  le  a "]
[null,null,null,null,null,null,null,null,null,null,null,null,null,null,null," panne  type  le  a "]
[null,null,null,null,null,null,null,null,null,null,null,null,null,null,null," panne  type  le  a "]
[null,null,null,null,null,null,null,null,null,null,null,null,null,null,null," panne  type  le  a "]
[null,null,null,null,null,null,null,null,null,null,null,null,null,null,null," panne  type  le  a "]
[null,null,null,null,null,null,null,null,null,null,null,null,null,null,null," panne  type  le  a "]
[null,null,null,null,null,null,null,null,null,null,null,null,null,null,null," panne  type  le  a "]
[null,null,null,null,null,null,null,null,null,null,null,null,null,null,null,{"$f":" A581 & \" panne \" & B581 & \" type \" & G581  &  \" le \" & D581  & \" a \" & C581","v":" panne  type  le  a "}]
[null,null,null,null,null,null,null,null,null,null,null,null,null,null,null," panne  type  le  a "]
[null,null,null,null,null,null,null,null,null,null,null,null,null,null,null," panne  type  le  a "]
[null,null,null,null,null,null,null,null,null,null,null,null,null,null,null," panne  type  le  a "]
[null,null,null,null,null,null,null,null,null,null,null,null,null,null,null," panne  type  le  a "]
[null,null,null,null,null,null,null,null,null,null,null,null,null,null,null," panne  type  le  a "]
[null,null,null,null,null,null,null,null,null,null,null,null,null,null,null," panne  type  le  a "]
[null,null,null,null,null,null,null,null,null,null,null,null,null,null,null," panne  type  le  a "]
[null,null,null,null,null,null,null,null,null,null,null,null,null,null,null," panne  type  le  a "]
[null,null,null,null,null,null,null,null,null,null,null,null,null,null,null," panne  type  le  a "]
[null,null,null,null,null,null,null,null,null,null,null,null,null,null,null," panne  type  le  a "]
[null,null,null,null,null,null,null,null,null,null,null,null,null,null,null," panne  type  le  a "]
[null,null,null,null,null,null,null,null,null,null,null,null,null,null,null," panne  type  le  a "]
[null,null,null,null,null,null,null,null,null,null,null,null,null,null,null," panne  type  le  a "]
[null,null,null,null,null,null,null,null,null,null,null,null,null,null,null," panne  type  le  a "]
[null,null,null,null,null,null,null,null,null,null,null,null,null,null,null," panne  type  le  a "]
[null,null,null,null,null,null,null,null,null,null,null,null,null,null,null," panne  type  le  a "]
[null,null,null,null,null,null,null,null,null,null,null,null,null,null,null," panne  type  le  a "]
[null,null,null,null,null,null,null,null,null,null,null,null,null,null,null," panne  type  le  a "]
[null,null,null,null,null,null,null,null,null,null,null,null,null,null,null," panne  type  le  a "]
[null,null,null,null,null,null,null,null,null,null,null,null,null,null,null," panne  type  le  a "]
[null,null,null,null,null,null,null,null,null,null,null,null,null,null,null," panne  type  le  a "]
[null,null,null,null,null,null,null,null,null,null,null,null,null,null,null," panne  type  le  a "]
[null,null,null,null,null,null,null,null,null,null,null,null,null,null,null," panne  type  le  a "]
[null,null,null,null,null,null,null,null,null,null,null,null,null,null,null," panne  type  le  a "]
[null,null,null,null,null,null,null,null,null,null,null,null,null,null,null," panne  type  le  a "]
[null,null,null,null,null,null,null,null,null,null,null,null,null,null,null," panne  type  le  a "]
[null,null,null,null,null,null,null,null,null,null,null,null,null,null,null," panne  type  le  a "]
[null,null,null,null,null,null,null,null,null,null,null,null,null,null,null," panne  type  le  a "]
[null,null,null,null,null,null,null,null,null,null,null,null,null,null,null," panne  type  le  a "]
[null,null,null,null,null,null,null,null,null,null,null,null,null,null,null," panne  type  le  a "]
[null,null,null,null,null,null,null,null,null,null,null,null,null,null,null," panne  type  le  a "]
[null,null,null,null,null,null,null,null,null,null,null,null,null,null,null," panne  type  le  a "]
[null,null,null,null,null,null,null,null,null,null,null,null,null,null,null," panne  type  le  a "]
[null,null,null,null,null,null,null,null,null,null,null,null,null,null,null," panne  type  le  a "]
[null,null,null,null,null,null,null,null,null,null,null,null,null,null,null," panne  type  le  a "]
[null,null,null,null,null,null,null,null,null,null,null,null,null,null,null," panne  type  le  a "]
[null,null,null,null,null,null,null,null,null,null,null,null,null,null,null," panne  type  le  a "]
[null,null,null,null,null,null,null,null,null,null,null,null,null,null,null," panne  type  le  a "]
[null,null,null,null,null,null,null,null,null,null,null,null,null,null,null," panne  type  le  a "]
[null,null,null,null,null,null,null,null,null,null,null,null,null,null,null," panne  type  le  a "]
[null,null,null,null,null,null,null,null,null,null,null,null,null,null,null," panne  type  le  a "]
[null,null,null,null,null,null,null,null,null,null,null,null,null,null,null," panne  type  le  a "]
[null,null,null,null,null,null,null,null,null,null,null,null,null,null,null," panne  type  le  a "]
[null,null,null,null,null,null,null,null,null,null,null,null,null,null,null," panne  type  le  a "]
[null,null,null,null,null,null,null,null,null,null,null,null,null,null,null," panne  type  le  a "]
[null,null,null,null,null,null,null,null,null,null,null,null,null,null,null," panne  type  le  a "]
[null,null,null,null,null,null,null,null,null,null,null,null,null,null,null," panne  type  le  a "]
[null,null,null,null,null,null,null,null,null,null,null,null,null,null,null," panne  type  le  a "]
[null,null,null,null,null,null,null,null,null,null,null,null,null,null,null," panne  type  le  a "]
[null,null,null,null,null,null,null,null,null,null,null,null,null,null,null," panne  type  le  a "]
[null,null,null,null,null,null,null,null,null,null,null,null,null,null,null," panne  type  le  a "]
[null,null,null,null,null,null,null,null,null,null,null,null,null,null,null," panne  type  le  a "]
[null,null,null,null,null,null,null,null,null,null,null,null,null,null,null," panne  type  le  a "]
[null,null,null,null,null,null,null,null,null,null,null,null,null,null,null," panne  type  le  a "]
[null,null,null,null,null,null,null,null,null,null,null,null,null,null,null," panne  type  le  a "]
[null,null,null,null,null,null,null,null,null,null,null,null,null,null,null," panne  type  le  a "]
[null,null,null,null,null,null,null,null,null,null,null,null,null,null,null," panne  type  le  a "]
[null,null,null,null,null,null,null,null,null,null,null,null,null,null,null," panne  type  le  a "]
[null,null,null,null,null,null,null,null,null,null,null,null,null,null,null," panne  type  le  a "]
[null,null,null,null,null,null,null,null,null,null,null,null,null,null,null," panne  type  le  a "]
[null,null,null,null,null,null,null,null,null,null,null,null,null,null,null," panne  type  le  a "]
[null,null,null,null,null,null,null,null,null,null,null,null,null,null,null," panne  type  le  a "]
[null,null,null,null,null,null,null,null,null,null,null,null,null,null,null," panne  type  le  a "]
[null,null,null,null,null,null,null,null,null,null,null,null,null,null,null,{"$f":" A645 & \" panne \" & B645 & \" type \" & G645  &  \" le \" & D645  & \" a \" & C645","v":" panne  type  le  a "}]
[null,null,null,null,null,null,null,null,null,null,null,null,null,null,null," panne  type  le  a "]
[null,null,null,null,null,null,null,null,null,null,null,null,null,null,null," panne  type  le  a "]
[null,null,null,null,null,null,null,null,null,null,null,null,null,null,null," panne  type  le  a "]
[null,null,null,null,null,null,null,null,null,null,null,null,null,null,null," panne  type  le  a "]
[null,null,null,null,null,null,null,null,null,null,null,null,null,null,null," panne  type  le  a "]
[null,null,null,null,null,null,null,null,null,null,null,null,null,null,null," panne  type  le  a "]
[null,null,null,null,null,null,null,null,null,null,null,null,null,null,null," panne  type  le  a "]
[null,null,null,null,null,null,null,null,null,null,null,null,null,null,null," panne  type  le  a "]
[null,null,null,null,null,null,null,null,null,null,null,null,null,null,null," panne  type  le  a "]
[null,null,null,null,null,null,null,null,null,null,null,null,null,null,null," panne  type  le  a "]
[null,null,null,null,null,null,null,null,null,null,null,null,null,null,null," panne  type  le  a "]
[null,null,null,null,null,null,null,null,null,null,null,null,null,null,null," panne  type  le  a "]
[null,null,null,null,null,null,null,null,null,null,null,null,null,null,null," panne  type  le  a "]
[null,null,null,null,null,null,null,null,null,null,null,null,null,null,null," panne  type  le  a "]
[null,null,null,null,null,null,null,null,null,null,null,null,null,null,null," panne  type  le  a "]
[null,null,null,null,null,null,null,null,null,null,null,null,null,null,null," panne  type  le  a "]
[null,null,null,null,null,null,null,null,null,null,null,null,null,null,null," panne  type  le  a "]
[null,null,null,null,null,null,null,null,null,null,null,null,null,null,null," panne  type  le  a "]
[null,null,null,null,null,null,null,null,null,null,null,null,null,null,null," panne  type  le  a "]
[null,null,null,null,null,null,null,null,null,null,null,null,null,null,null," panne  type  le  a "]
[null,null,null,null,null,null,null,null,null,null,null,null,null,null,null," panne  type  le  a "]
[null,null,null,null,null,null,null,null,null,null,null,null,null,null,null," panne  type  le  a "]
[null,null,null,null,null,null,null,null,null,null,null,null,null,null,null," panne  type  le  a "]
[null,null,null,null,null,null,null,null,null,null,null,null,null,null,null," panne  type  le  a "]
[null,null,null,null,null,null,null,null,null,null,null,null,null,null,null," panne  type  le  a "]
[null,null,null,null,null,null,null,null,null,null,null,null,null,null,null," panne  type  le  a "]
[null,null,null,null,null,null,null,null,null,null,null,null,null,null,null," panne  type  le  a "]
[null,null,null,null,null,null,null,null,null,null,null,null,null,null,null," panne  type  le  a "]
[null,null,null,null,null,null,null,null,null,null,null,null,null,null,null," panne  type  le  a "]
[null,null,null,null,null,null,null,null,null,null,null,null,null,null,null," panne  type  le  a "]
[null,null,null,null,null,null,null,null,null,null,null,null,null,null,null," panne  type  le  a "]
[null,null,null,null,null,null,null,null,null,null,null,null,null,null,null," panne  type  le  a "]
[null,null,null,null,null,null,null,null,null,null,null,null,null,null,null," panne  type  le  a "]
[null,null,null,null,null,null,null,null,null,null,null,null,null,null,null," panne  type  le  a "]
[null,null,null,null,null,null,null,null,null,null,null,null,null,null,null," panne  type  le  a "]
[null,null,null,null,null,null,null,null,null,null,null,null,null,null,null," panne  type  le  a "]
[null,null,null,null,null,null,null,null,null,null,null,null,null,null,null," panne  type  le  a "]
[null,null,null,null,null,null,null,null,null,null,null,null,null,null,null," panne  type  le  a "]
[null,null,null,null,null,null,null,null,null,null,null,null,null,null,null," panne  type  le  a "]
[null,null,null,null,null,null,null,null,null,null,null,null,null,null,null," panne  type  le  a "]
[null,null,null,null,null,null,null,null,null,null,null,null,null,null,null," panne  type  le  a "]
[null,null,null,null,null,null,null,null,null,null,null,null,null,null,null," panne  type  le  a "]
[null,null,null,null,null,null,null,null,null,null,null,null,null,null,null," panne  type  le  a "]
[null,null,null,null,null,null,null,null,null,null,null,null,null,null,null," panne  type  le  a "]
[null,null,null,null,null,null,null,null,null,null,null,null,null,null,null," panne  type  le  a "]
[null,null,null,null,null,null,null,null,null,null,null,null,null,null,null," panne  type  le  a "]
[null,null,null,null,null,null,null,null,null,null,null,null,null,null,null," panne  type  le  a "]
[null,null,null,null,null,null,null,null,null,null,null,null,null,null,null," panne  type  le  a "]
[null,null,null,null,null,null,null,null,null,null,null,null,null,null,null," panne  type  le  a "]
[null,null,null,null,null,null,null,null,null,null,null,null,null,null,null," panne  type  le  a "]
[null,null,null,null,null,null,null,null,null,null,null,null,null,null,null," panne  type  le  a "]
[null,null,null,null,null,null,null,null,null,null,null,null,null,null,null," panne  type  le  a "]
[null,null,null,null,null,null,null,null,null,null,null,null,null,null,null," panne  type  le  a "]
[null,null,null,null,null,null,null,null,null,null,null,null,null,null,null," panne  type  le  a "]
[null,null,null,null,null,null,null,null,null,null,null,null,null,null,null," panne  type  le  a "]
[null,null,null,null,null,null,null,null,null,null,null,null,null,null,null," panne  type  le  a "]
[null,null,null,null,null,null,null,null,null,null,null,null,null,null,null," panne  type  le  a "]
[null,null,null,null,null,null,null,null,null,null,null,null,null,null,null," panne  type  le  a "]
[null,null,null,null,null,null,null,null,null,null,null,null,null,null,null," panne  type  le  a "]
[null,null,null,null,null,null,null,null,null,null,null,null,null,null,null," panne  type  le  a "]
[null,null,null,null,null,null,null,null,null,null,null,null,null,null,null," panne  type  le  a "]
[null,null,null,null,null,null,null,null,null,null,null,null,null,null,null," panne  type  le  a "]
[null,null,null,null,null,null,null,null,null,null,null,null,null,null,null," panne  type  le  a "]
[null,null,null,null,null,null,null,null,null,null,null,null,null,null,null,{"$f":" A709 & \" panne \" & B709 & \" type \" & G709  &  \" le \" & D709  & \" a \" & C709","v":" panne  type  le  a "}]
[null,null,null,null,null,null,null,null,null,null,null,null,null,null,null," panne  type  le  a "]
[null,null,null,null,null,null,null,null,null,null,null,null,null,null,null," panne  type  le  a "]
[null,null,null,null,null,null,null,null,null,null,null,null,null,null,null," panne  type  le  a "]
[null,null,null,null,null,null,null,null,null,null,null,null,null,null,null," panne  type  le  a "]
[null,null,null,null,null,null,null,null,null,null,null,null,null,null,null," panne  type  le  a "]
[null,null,null,null,null,null,null,null,null,null,null,null,null,null,null," panne  type  le  a "]
[null,null,null,null,null,null,null,null,null,null,null,null,null,null,null," panne  type  le  a "]
[null,null,null,null,null,null,null,null,null,null,null,null,null,null,null," panne  type  le  a "]
[null,null,null,null,null,null,null,null,null,null,null,null,null,null,null," panne  type  le  a "]
[null,null,null,null,null,null,null,null,null,null,null,null,null,null,null," panne  type  le  a "]
[null,null,null,null,null,null,null,null,null,null,null,null,null,null,null," panne  type  le  a "]
[null,null,null,null,null,null,null,null,null,null,null,null,null,null,null," panne  type  le  a "]
[null,null,null,null,null,null,null,null,null,null,null,null,null,null,null," panne  type  le  a "]
[null,null,null,null,null,null,null,null,null,null,null,null,null,null,null," panne  type  le  a "]
[null,null,null,null,null,null,null,null,null,null,null,null,null,null,null," panne  type  le  a "]
[null,null,null,null,null,null,null,null,null,null,null,null,null,null,null," panne  type  le  a "]
[null,null,null,null,null,null,null,null,null,null,null,null,null,null,null," panne  type  le  a "]
[null,null,null,null,null,null,null,null,null,null,null,null,null,null,null," panne  type  le  a "]
[null,null,null,null,null,null,null,null,null,null,null,null,null,null,null," panne  type  le  a "]
[null,null,null,null,null,null,null,null,null,null,null,null,null,null,null," panne  type  le  a "]
[null,null,null,null,null,null,null,null,null,null,null,null,null,null,null," panne  type  le  a "]
[null,null,null,null,null,null,null,null,null,null,null,null,null,null,null," panne  type  le  a "]
[null,null,null,null,null,null,null,null,null,null,null,null,null,null,null," panne  type  le  a "]
[null,null,null,null,null,null,null,null,null,null,null,null,null,null,null," panne  type  le  a "]
[null,null,null,null,null,null,null,null,null,null,null,null,null,null,null," panne  type  le  a "]
[null,null,null,null,null,null,null,null,null,null,null,null,null,null,null," panne  type  le  a "]
[null,null,null,null,null,null,null,null,null,null,null,null,null,null,null," panne  type  le  a "]
[null,null,null,null,null,null,null,null,null,null,null,null,null,null,null," panne  type  le  a "]
[null,null,null,null,null,null,null,null,null,null,null,null,null,null,null," panne  type  le  a "]
[null,null,null,null,null,null,null,null,null,null,null,null,null,null,null," panne  type  le  a "]
[null,null,null,null,null,null,null,null,null,null,null,null,null,null,null," panne  type  le  a "]
[null,null,null,null,null,null,null,null,null,null,null,null,null,null,null," panne  type  le  a "]
[null,null,null,null,null,null,null,null,null,null,null,null,null,null,null," panne  type  le  a "]
[null,null,null,null,null,null,null,null,null,null,null,null,null,null,null," panne  type  le  a "]
[null,null,null,null,null,null,null,null,null,null,null,null,null,null,null," panne  type  le  a "]
[null,null,null,null,null,null,null,null,null,null,null,null,null,null,null," panne  type  le  a "]
[null,null,null,null,null,null,null,null,null,null,null,null,null,null,null," panne  type  le  a "]
[null,null,null,null,null,null,null,null,null,null,null,null,null,null,null," panne  type  le  a "]
[null,null,null,null,null,null,null,null,null,null,null,null,null,null,null," panne  type  le  a "]
[null,null,null,null,null,null,null,null,null,null,null,null,null,null,null," panne  type  le  a "]
[null,null,null,null,null,null,null,null,null,null,null,null,null,null,null," panne  type  le  a "]
[null,null,null,null,null,null,null,null,null,null,null,null,null,null,null," panne  type  le  a "]
[null,null,null,null,null,null,null,null,null,null,null,null,null,null,null," panne  type  le  a "]
[null,null,null,null,null,null,null,null,null,null,null,null,null,null,null," panne  type  le  a "]
[null,null,null,null,null,null,null,null,null,null,null,null,null,null,null," panne  type  le  a "]
[null,null,null,null,null,null,null,null,null,null,null,null,null,null,null," panne  type  le  a "]
[null,null,null,null,null,null,null,null,null,null,null,null,null,null,null," panne  type  le  a "]
[null,null,null,null,null,null,null,null,null,null,null,null,null,null,null," panne  type  le  a "]
[null,null,null,null,null,null,null,null,null,null,null,null,null,null,null," panne  type  le  a "]
[null,null,null,null,null,null,null,null,null,null,null,null,null,null,null," panne  type  le  a "]
[null,null,null,null,null,null,null,null,null,null,null,null,null,null,null," panne  type  le  a "]
[null,null,null,null,null,null,null,null,null,null,null,null,null,null,null," panne  type  le  a "]
[null,null,null,null,null,null,null,null,null,null,null,null,null,null,null," panne  type  le  a "]
[null,null,null,null,null,null,null,null,null,null,null,null,null,null,null," panne  type  le  a "]
[null,null,null,null,null,null,null,null,null,null,null,null,null,null,null," panne  type  le  a "]
[null,null,null,null,null,null,null,null,null,null,null,null,null,null,null," panne  type  le  a "]
[null,null,null,null,null,null,null,null,null,null,null,null,null,null,null," panne  type  le  a "]
[null,null,null,null,null,null,null,null,null,null,null,null,null,null,null," panne  type  le  a "]
[null,null,null,null,null,null,null,null,null,null,null,null,null,null,null," panne  type  le  a "]
[null,null,null,null,null,null,null,null,null,null,null,null,null,null,null," panne  type  le  a "]
[null,null,null,null,null,null,null,null,null,null,null,null,null,null,null," panne  type  le  a "]
[null,null,null,null,null,null,null,null,null,null,null,null,null,null,null," panne  type  le  a "]
[null,null,null,null,null,null,null,null,null,null,null,null,null,null,null," panne  type  le  a "]
[null,null,null,null,null,null,null,null,null,null,null,null,null,null,null,{"$f":" A773 & \" panne \" & B773 & \" type \" & G773  &  \" le \" & D773  & \" a \" & C773","v":" panne  type  le  a "}]
[null,null,null,null,null,null,null,null,null,null,null,null,null,null,null," panne  type  le  a "]
[null,null,null,null,null,null,null,null,null,null,null,null,null,null,null," panne  type  le  a "]
[null,null,null,null,null,null,null,null,null,null,null,null,null,null,null," panne  type  le  a "]
[null,null,null,null,null,null,null,null,null,null,null,null,null,null,null," panne  type  le  a "]
[null,null,null,null,null,null,null,null,null,null,null,null,null,null,null," panne  type  le  a "]
[null,null,null,null,null,null,null,null,null,null,null,null,null,null,null," panne  type  le  a "]
[null,null,null,null,null,null,null,null,null,null,null,null,null,null,null," panne  type  le  a "]
[null,null,null,null,null,null,null,null,null,null,null,null,null,null,null," panne  type  le  a "]
[null,null,null,null,null,null,null,null,null,null,null,null,null,null,null," panne  type  le  a "]
[null,null,null,null,null,null,null,null,null,null,null,null,null,null,null," panne  type  le  a "]
[null,null,null,null,null,null,null,null,null,null,null,null,null,null,null," panne  type  le  a "]
[null,null,null,null,null,null,null,null,null,null,null,null,null,null,null," panne  type  le  a "]
[null,null,null,null,null,null,null,null,null,null,null,null,null,null,null," panne  type  le  a "]
[null,null,null,null,null,null,null,null,null,null,null,null,null,null,null," panne  type  le  a "]
[null,null,null,null,null,null,null,null,null,null,null,null,null,null,null," panne  type  le  a "]
[null,null,null,null,null,null,null,null,null,null,null,null,null,null,null," panne  type  le  a "]
[null,null,null,null,null,null,null,null,null,null,null,null,null,null,null," panne  type  le  a "]
[null,null,null,null,null,null,null,null,null,null,null,null,null,null,null," panne  type  le  a "]
[null,null,null,null,null,null,null,null,null,null,null,null,null,null,null," panne  type  le  a "]
[null,null,null,null,null,null,null,null,null,null,null,null,null,null,null," panne  type  le  a "]
[null,null,null,null,null,null,null,null,null,null,null,null,null,null,null," panne  type  le  a "]
[null,null,null,null,null,null,null,null,null,null,null,null,null,null,null," panne  type  le  a "]
[null,null,null,null,null,null,null,null,null,null,null,null,null,null,null," panne  type  le  a "]
[null,null,null,null,null,null,null,null,null,null,null,null,null,null,null," panne  type  le  a "]
[null,null,null,null,null,null,null,null,null,null,null,null,null,null,null," panne  type  le  a "]
[null,null,null,null,null,null,null,null,null,null,null,null,null,null,null," panne  type  le  a "]
[null,null,null,null,null,null,null,null,null,null,null,null,null,null,null," panne  type  le  a "]
[null,null,null,null,null,null,null,null,null,null,null,null,null,null,null," panne  type  le  a "]
[null,null,null,null,null,null,null,null,null,null,null,null,null,null,null," panne  type  le  a "]
[null,null,null,null,null,null,null,null,null,null,null,null,null,null,null," panne  type  le  a "]
[null,null,null,null,null,null,null,null,null,null,null,null,null,null,null," panne  type  le  a "]
[null,null,null,null,null,null,null,null,null,null,null,null,null,null,null," panne  type  le  a "]
[null,null,null,null,null,null,null,null,null,null,null,null,null,null,null," panne  type  le  a "]
[null,null,null,null,null,null,null,null,null,null,null,null,null,null,null," panne  type  le  a "]
[null,null,null,null,null,null,null,null,null,null,null,null,null,null,null," panne  type  le  a "]
[null,null,null,null,null,null,null,null,null,null,null,null,null,null,null," panne  type  le  a "]
[null,null,null,null,null,null,null,null,null,null,null,null,null,null,null," panne  type  le  a "]
[null,null,null,null,null,null,null,null,null,null,null,null,null,null,null," panne  type  le  a "]
[null,null,null,null,null,null,null,null,null,null,null,null,null,null,null," panne  type  le  a "]
[null,null,null,null,null,null,null,null,null,null,null,null,null,null,null," panne  type  le  a "]
[null,null,null,null,null,null,null,null,null,null,null,null,null,null,null," panne  type  le  a "]
[null,null,null,null,null,null,null,null,null,null,null,null,null,null,null," panne  type  le  a "]
[null,null,null,null,null,null,null,null,null,null,null,null,null,null,null," panne  type  le  a "]
[null,null,null,null,null,null,null,null,null,null,null,null,null,null,null," panne  type  le  a "]
[null,null,null,null,null,null,null,null,null,null,null,null,null,null,null," panne  type  le  a "]
[null,null,null,null,null,null,null,null,null,null,null,null,null,null,null," panne  type  le  a "]
[null,null,null,null,null,null,null,null,null,null,null,null,null,null,null," panne  type  le  a "]
[null,null,null,null,null,null,null,null,null,null,null,null,null,null,null," panne  type  le  a "]
[null,null,null,null,null,null,null,null,null,null,null,null,null,null,null," panne  type  le  a "]
[null,null,null,null,null,null,null,null,null,null,null,null,null,null,null," panne  type  le  a "]
[null,null,null,null,null,null,null,null,null,null,null,null,null,null,null," panne  type  le  a "]
[null,null,null,null,null,null,null,null,null,null,null,null,null,null,null," panne  type  le  a "]
[null,null,null,null,null,null,null,null,null,null,null,null,null,null,null," panne  type  le  a "]
[null,null,null,null,null,null,null,null,null,null,null,null,null,null,null," panne  type  le  a "]
[null,null,null,null,null,null,null,null,null,null,null,null,null,null,null," panne  type  le  a "]
[null,null,null,null,null,null,null,null,null,null,null,null,null,null,null," panne  type  le  a "]
[null,null,null,null,null,null,null,null,null,null,null,null,null,null,null," panne  type  le  a "]
[null,null,null,null,null,null,null,null,null,null,null,null,null,null,null," panne  type  le  a "]
[null,null,null,null,null,null,null,null,null,null,null,null,null,null,null," panne  type  le  a "]
[null,null,null,null,null,null,null,null,null,null,null,null,null,null,null," panne  type  le  a "]
[null,null,null,null,null,null,null,null,null,null,null,null,null,null,null," panne  type  le  a "]
[null,null,null,null,null,null,null,null,null,null,null,null,null,null,null," panne  type  le  a "]
[null,null,null,null,null,null,null,null,null,null,null,null,null,null,null," panne  type  le  a "]
[null,null,null,null,null,null,null,null,null,null,null,null,null,null,null,{"$f":" A837 & \" panne \" & B837 & \" type \" & G837  &  \" le \" & D837  & \" a \" & C837","v":" panne  type  le  a "}]
[null,null,null,null,null,null,null,null,null,null,null,null,null,null,null," panne  type  le  a "]
[null,null,null,null,null,null,null,null,null,null,null,null,null,null,null," panne  type  le  a "]
[null,null,null,null,null,null,null,null,null,null,null,null,null,null,null," panne  type  le  a "]
[null,null,null,null,null,null,null,null,null,null,null,null,null,null,null," panne  type  le  a "]
[null,null,null,null,null,null,null,null,null,null,null,null,null,null,null," panne  type  le  a "]
[null,null,null,null,null,null,null,null,null,null,null,null,null,null,null," panne  type  le  a "]
[null,null,null,null,null,null,null,null,null,null,null,null,null,null,null," panne  type  le  a "]
[null,null,null,null,null,null,null,null,null,null,null,null,null,null,null," panne  type  le  a "]
[null,null,null,null,null,null,null,null,null,null,null,null,null,null,null," panne  type  le  a "]
[null,null,null,null,null,null,null,null,null,null,null,null,null,null,null," panne  type  le  a "]
[null,null,null,null,null,null,null,null,null,null,null,null,null,null,null," panne  type  le  a "]
[null,null,null,null,null,null,null,null,null,null,null,null,null,null,null," panne  type  le  a "]
[null,null,null,null,null,null,null,null,null,null,null,null,null,null,null," panne  type  le  a "]
[null,null,null,null,null,null,null,null,null,null,null,null,null,null,null," panne  type  le  a "]
[null,null,null,null,null,null,null,null,null,null,null,null,null,null,null," panne  type  le  a "]
[null,null,null,null,null,null,null,null,null,null,null,null,null,null,null," panne  type  le  a "]
[null,null,null,null,null,null,null,null,null,null,null,null,null,null,null," panne  type  le  a "]
[null,null,null,null,null,null,null,null,null,null,null,null,null,null,null," panne  type  le  a "]
[null,null,null,null,null,null,null,null,null,null,null,null,null,null,null," panne  type  le  a "]
[null,null,null,null,null,null,null,null,null,null,null,null,null,null,null," panne  type  le  a "]
[null,null,null,null,null,null,null,null,null,null,null,null,null,null,null," panne  type  le  a "]
[null,null,null,null,null,null,null,null,null,null,null,null,null,null,null," panne  type  le  a "]
[null,null,null,null,null,null,null,null,null,null,null,null,null,null,null," panne  type  le  a "]
[null,null,null,null,null,null,null,null,null,null,null,null,null,null,null," panne  type  le  a "]
[null,null,null,null,null,null,null,null,null,null,null,null,null,null,null," panne  type  le  a "]
[null,null,null,null,null,null,null,null,null,null,null,null,null,null,null," panne  type  le  a "]
[null,null,null,null,null,null,null,null,null,null,null,null,null,null,null," panne  type  le  a "]
[null,null,null,null,null,null,null,null,null,null,null,null,null,null,null," panne  type  le  a "]
[null,null,null,null,null,null,null,null,null,null,null,null,null,null,null," panne  type  le  a "]
[null,null,null,null,null,null,null,null,null,null,null,null,null,null,null," panne  type  le  a "]
[null,null,null,null,null,null,null,null,null,null,null,null,null,null,null," panne  type  le  a "]
[null,null,null,null,null,null,null,null,null,null,null,null,null,null,null," panne  type  le  a "]
[null,null,null,null,null,null,null,null,null,null,null,null,null,null,null," panne  type  le  a "]
[null,null,null,null,null,null,null,null,null,null,null,null,null,null,null," panne  type  le  a "]
[null,null,null,null,null,null,null,null,null,null,null,null,null,null,null," panne  type  le  a "]
[null,null,null,null,null,null,null,null,null,null,null,null,null,null,null," panne  type  le  a "]
[null,null,null,null,null,null,null,null,null,null,null,null,null,null,null," panne  type  le  a "]
[null,null,null,null,null,null,null,null,null,null,null,null,null,null,null," panne  type  le  a "]
[null,null,null,null,null,null,null,null,null,null,null,null,null,null,null," panne  type  le  a "]
[null,null,null,null,null,null,null,null,null,null,null,null,null,null,null," panne  type  le  a "]
[null,null,null,null,null,null,null,null,null,null,null,null,null,null,null," panne  type  le  a "]
[null,null,null,null,null,null,null,null,null,null,null,null,null,null,null," panne  type  le  a "]
[null,null,null,null,null,null,null,null,null,null,null,null,null,null,null," panne  type  le  a "]
[null,null,null,null,null,null,null,null,null,null,null,null,null,null,null," panne  type  le  a "]
[null,null,null,null,null,null,null,null,null,null,null,null,null,null,null," panne  type  le  a "]
[null,null,null,null,null,null,null,null,null,null,null,null,null,null,null," panne  type  le  a "]
[null,null,null,null,null,null,null,null,null,null,null,null,null,null,null," panne  type  le  a "]
[null,null,null,null,null,null,null,null,null,null,null,null,null,null,null," panne  type  le  a "]
[null,null,null,null,null,null,null,null,null,null,null,null,null,null,null," panne  type  le  a "]
[null,null,null,null,null,null,null,null,null,null,null,null,null,null,null," panne  type  le  a "]
[null,null,null,null,null,null,null,null,null,null,null,null,null,null,null," panne  type  le  a "]
[null,null,null,null,null,null,null,null,null,null,null,null,null,null,null," panne  type  le  a "]
[null,null,null,null,null,null,null,null,null,null,null,null,null,null,null," panne  type  le  a "]
[null,null,null,null,null,null,null,null,null,null,null,null,null,null,null," panne  type  le  a "]
[null,null,null,null,null,null,null,null,null,null,null,null,null,null,null," panne  type  le  a "]
[null,null,null,null,null,null,null,null,null,null,null,null,null,null,null," panne  type  le  a "]
[null,null,null,null,null,null,null,null,null,null,null,null,null,null,null," panne  type  le  a "]
[null,null,null,null,null,null,null,null,null,null,null,null,null,null,null," panne  type  le  a "]
[null,null,null,null,null,null,null,null,null,null,null,null,null,null,null," panne  type  le  a "]
[null,null,null,null,null,null,null,null,null,null,null,null,null,null,null," panne  type  le  a "]
[null,null,null,null,null,null,null,null,null,null,null,null,null,null,null," panne  type  le  a "]
[null,null,null,null,null,null,null,null,null,null,null,null,null,null,null," panne  type  le  a "]
[null,null,null,null,null,null,null,null,null,null,null,null,null,null,null," panne  type  le  a "]
[null,null,null,null,null,null,null,null,null,null,null,null,null,null,null,{"$f":" A901 & \" panne \" & B901 & \" type \" & G901  &  \" le \" & D901  & \" a \" & C901","v":" panne  type  le  a "}]
[null,null,null,null,null,null,null,null,null,null,null,null,null,null,null," panne  type  le  a "]
[null,null,null,null,null,null,null,null,null,null,null,null,null,null,null," panne  type  le  a "]
[null,null,null,null,null,null,null,null,null,null,null,null,null,null,null," panne  type  le  a "]
[null,null,null,null,null,null,null,null,null,null,null,null,null,null,null," panne  type  le  a "]
[null,null,null,null,null,null,null,null,null,null,null,null,null,null,null," panne  type  le  a "]
[null,null,null,null,null,null,null,null,null,null,null,null,null,null,null," panne  type  le  a "]
[null,null,null,null,null,null,null,null,null,null,null,null,null,null,null," panne  type  le  a "]
[null,null,null,null,null,null,null,null,null,null,null,null,null,null,null," panne  type  le  a "]
[null,null,null,null,null,null,null,null,null,null,null,null,null,null,null," panne  type  le  a "]
[null,null,null,null,null,null,null,null,null,null,null,null,null,null,null," panne  type  le  a "]
[null,null,null,null,null,null,null,null,null,null,null,null,null,null,null," panne  type  le  a "]
[null,null,null,null,null,null,null,null,null,null,null,null,null,null,null," panne  type  le  a "]
[null,null,null,null,null,null,null,null,null,null,null,null,null,null,null," panne  type  le  a "]
[null,null,null,null,null,null,null,null,null,null,null,null,null,null,null," panne  type  le  a "]
[null,null,null,null,null,null,null,null,null,null,null,null,null,null,null,{"$f":" A916 & \" panne \" & B916 & \" type \" & G916  &  \" le \" & D916  & \" a \" & C916","v":" panne  type  le  a "}]
[null,null,null,null,null,null,null,null,null,null,null,null,null,null,null," panne  type  le  a "]
[null,null,null,null,null,null,null,null,null,null,null,null,null,null,null," panne  type  le  a "]
[null,null,null,null,null,null,null,null,null,null,null,null,null,null,null," panne  type  le  a "]
[null,null,null,null,null,null,null,null,null,null,null,null,null,null,null," panne  type  le  a "]
[null,null,null,null,null,null,null,null,null,null,null,null,null,null,null," panne  type  le  a "]
[null,null,null,null,null,null,null,null,null,null,null,null,null,null,null," panne  type  le  a "]
[null,null,null,null,null,null,null,null,null,null,null,null,null,null,null," panne  type  le  a "]
[null,null,null,null,null,null,null,null,null,null,null,null,null,null,null," panne  type  le  a "]
[null,null,null,null,null,null,null,null,null,null,null,null,null,null,null," panne  type  le  a "]
[null,null,null,null,null,null,null,null,null,null,null,null,null,null,null," panne  type  le  a "]
[null,null,null,null,null,null,null,null,null,null,null,null,null,null,null," panne  type  le  a "]
[null,null,null,null,null,null,null,null,null,null,null,null,null,null,null," panne  type  le  a "]
[null,null,null,null,null,null,null,null,null,null,null,null,null,null,null," panne  type  le  a "]
[null,null,null,null,null,null,null,null,null,null,null,null,null,null,null," panne  type  le  a "]
[null,null,null,null,null,null,null,null,null,null,null,null,null,null,null," panne  type  le  a "]
[null,null,null,null,null,null,null,null,null,null,null,null,null,null,null," panne  type  le  a "]
[null,null,null,null,null,null,null,null,null,null,null,null,null,null,null," panne  type  le  a "]
[null,null,null,null,null,null,null,null,null,null,null,null,null,null,null," panne  type  le  a "]
[null,null,null,null,null,null,null,null,null,null,null,null,null,null,null," panne  type  le  a "]
[null,null,null,null,null,null,null,null,null,null,null,null,null,null,null," panne  type  le  a "]
[null,null,null,null,null,null,null,null,null,null,null,null,null,null,null," panne  type  le  a "]
[null,null,null,null,null,null,null,null,null,null,null,null,null,null,null," panne  type  le  a "]
[null,null,null,null,null,null,null,null,null,null,null,null,null,null,null," panne  type  le  a "]
[null,null,null,null,null,null,null,null,null,null,null,null,null,null,null," panne  type  le  a "]
[null,null,null,null,null,null,null,null,null,null,null,null,null,null,null," panne  type  le  a "]
[null,null,null,null,null,null,null,null,null,null,null,null,null,null,null," panne  type  le  a "]
[null,null,null,null,null,null,null,null,null,null,null,null,null,null,null," panne  type  le  a "]
[null,null,null,null,null,null,null,null,null,null,null,null,null,null,null," panne  type  le  a "]
[null,null,null,null,null,null,null,null,null,null,null,null,null,null,null," panne  type  le  a "]
[null,null,null,null,null,null,null,null,null,null,null,null,null,null,null," panne  type  le  a "]
[null,null,null,null,null,null,null,null,null,null,null,null,null,null,null," panne  type  le  a "]
[null,null,null,null,null,null,null,null,null,null,null,null,null,null,null," panne  type  le  a "]
[null,null,null,null,null,null,null,null,null,null,null,null,null,null,null," panne  type  le  a "]
[null,null,null,null,null,null,null,null,null,null,null,null,null,null,null," panne  type  le  a "]
[null,null,null,null,null,null,null,null,null,null,null,null,null,null,null," panne  type  le  a "]
[null,null,null,null,null,null,null,null,null,null,null,null,null,null,null," panne  type  le  a "]
[null,null,null,null,null,null,null,null,null,null,null,null,null,null,null," panne  type  le  a "]
[null,null,null,null,null,null,null,null,null,null,null,null,null,null,null," panne  type  le  a "]
[null,null,null,null,null,null,null,null,null,null,null,null,null,null,null," panne  type  le  a "]
[null,null,null,null,null,null,null,null,null,null,null,null,null,null,null," panne  type  le  a "]
[null,null,null,null,null,null,null,null,null,null,null,null,null,null,null," panne  type  le  a "]
[null,null,null,null,null,null,null,null,null,null,null,null,null,null,null," panne  type  le  a "]
[null,null,null,null,null,null,null,null,null,null,null,null,null,null,null," panne  type  le  a "]
[null,null,null,null,null,null,null,null,null,null,null,null,null,null,null," panne  type  le  a "]
[null,null,null,null,null,null,null,null,null,null,null,null,null,null,null," panne  type  le  a "]
[null,null,null,null,null,null,null,null,null,null,null,null,null,null,null," panne  type  le  a "]
[null,null,null,null,null,null,null,null,null,null,null,null,null,null,null," panne  type  le  a "]
[null,null,null,null,null,null,null,null,null,null,null,null,null,null,null," panne  type  le  a "]
[null,null,null,null,null,null,null,null,null,null,null,null,null,null,null," panne  type  le  a "]
[null,null,null,null,null,null,null,null,null,null,null,null,null,null,null," panne  type  le  a "]
[null,null,null,null,null,null,null,null,null,null,null,null,null,null,null," panne  type  le  a "]
[null,null,null,null,null,null,null,null,null,null,null,null,null,null,null,{"$f":" A968 & \" panne \" & B968 & \" type \" & G968  &  \" le \" & D968  & \" a \" & C968","v":" panne  type  le  a "}]
[null,null,null,null,null,null,null,null,null,null,null,null,null,null,null," panne  type  le  a "]
[null,null,null,null,null,null,null,null,null,null,null,null,null,null,null," panne  type  le  a "]
[null,null,null,null,null,null,null,null,null,null,null,null,null,null,null," panne  type  le  a "]
[null,null,null,null,null,null,null,null,null,null,null,null,null,null,null," panne  type  le  a "]
[null,null,null,null,null,null,null,null,null,null,null,null,null,null,null," panne  type  le  a "]
[null,null,null,null,null,null,null,null,null,null,null,null,null,null,null," panne  type  le  a "]
[null,null,null,null,null,null,null,null,null,null,null,null,null,null,null," panne  type  le  a "]
[null,null,null,null,null,null,null,null,null,null,null,null,null,null,null," panne  type  le  a "]
[null,null,null,null,null,null,null,null,null,null,null,null,null,null,null," panne  type  le  a "]
[null,null,null,null,null,null,null,null,null,null,null,null,null,null,null," panne  type  le  a "]
[null,null,null,null,null,null,null,null,null,null,null,null,null,null,null," panne  type  le  a "]
[null,null,null,null,null,null,null,null,null,null,null,null,null,null,null," panne  type  le  a "]
[null,null,null,null,null,null,null,null,null,null,null,null,null,null,null," panne  type  le  a "]
[null,null,null,null,null,null,null,null,null,null,null,null,null,null,null," panne  type  le  a "]
[null,null,null,null,null,null,null,null,null,null,null,null,null,null,null," panne  type  le  a "]
[null,null,null,null,null,null,null,null,null,null,null,null,null,null,null," panne  type  le  a "]
[null,null,null,null,null,null,null,null,null,null,null,null,null,null,null," panne  type  le  a "]
[null,null,null,null,null,null,null,null,null,null,null,null,null,null,null," panne  type  le  a "]
[null,null,null,null,null,null,null,null,null,null,null,null,null,null,null," panne  type  le  a "]
[null,null,null,null,null,null,null,null,null,null,null,null,null,null,null," panne  type  le  a "]
[null,null,null,null,null,null,null,null,null,null,null,null,null,null,null," panne  type  le  a "]
[null,null,null,null,null,null,null,null,null,null,null,null,null,null,null," panne  type  le  a "]
[null,null,null,null,null,null,null,null,null,null,null,null,null,null,null," panne  type  le  a "]
[null,null,null,null,null,null,null,null,null,null,null,null,null,null,null," panne  type  le  a "]
[null,null,null,null,null,null,null,null,null,null,null,null,null,null,null," panne  type  le  a "]
[null,null,null,null,null,null,null,null,null,null,null,null,null,null,null," panne  type  le  a "]
[null,null,null,null,null,null,null,null,null,null,null,null,null,null,null," panne  type  le  a "]
[null,null,null,null,null,null,null,null,null,null,null,null,null,null,null," panne  type  le  a "]
[null,null,null,null,null,null,null,null,null,null,null,null,null,null,null," panne  type  le  a "]
[null,null,null,null,null,null,null,null,null,null,null,null,null,null,null," panne  type  le  a "]
[null,null,null,null,null,null,null,null,null,null,null,null,null,null,null," panne  type  le  a "]
[null,null,null,null,null,null,null,null,null,null,null,null,null,null,null," panne  type  le  a "]
[null,null,null,null,null,null,null,null,null,null,null,null,null,null,null," panne  type  le  a "]
[null,null,null,null,null,null,null,null,null,null,null,null,null,null,null," panne  type  le  a "]
[null,null,null,null,null,null,null,null,null,null,null,null,null,null,null," panne  type  le  a "]
[null,null,null,null,null,null,null,null,null,null,null,null,null,null,null," panne  type  le  a "]
[null,null,null,null,null,null,null,null,null,null,null,null,null,null,null," panne  type  le  a "]
[null,null,null,null,null,null,null,null,null,null,null,null,null,null,null," panne  type  le  a "]
[null,null,null,null,null,null,null,null,null,null,null,null,null,null,null," panne  type  le  a "]
[null,null,null,null,null,null,null,null,null,null,null,null,null,null,null," panne  type  le  a "]
[null,null,null,null,null,null,null,null,null,null,null,null,null,null,null," panne  type  le  a "]
[null,null,null,null,null,null,null,null,null,null,null,null,null,null,null," panne  type  le  a "]
[null,null,null,null,null,null,null,null,null,null,null,null,null,null,null," panne  type  le  a "]
[null,null,null,null,null,null,null,null,null,null,null,null,null,null,null," panne  type  le  a "]
[null,null,null,null,null,null,null,null,null,null,null,null,null,null,null," panne  type  le  a "]
[null,null,null,null,null,null,null,null,null,null,null,null,null,null,null," panne  type  le  a "]
[null,null,null,null,null,null,null,null,null,null,null,null,null,null,null," panne  type  le  a "]
[null,null,null,null,null,null,null,null,null,null,null,null,null,null,null," panne  type  le  a "]
[null,null,null,null,null,null,null,null,null,null,null,null,null,null,null," panne  type  le  a "]
[null,null,null,null,null,null,null,null,null,null,null,null,null,null,null," panne  type  le  a "]
[null,null,null,null,null,null,null,null,null,null,null,null,null,null,null," panne  type  le  a "]
[null,null,null,null,null,null,null,null,null,null,null,null,null,null,null," panne  type  le  a "]
[null,null,null,null,null,null,null,null,null,null,null,null,null,null,null," panne  type  le  a "]
[null,null,null,null,null,null,null,null,null,null,null,null,null,null,null," panne  type  le  a "]
[null,null,null,null,null,null,null,null,null,null,null,null,null,null,null," panne  type  le  a "]
[null,null,null,null,null,null,null,null,null,null,null,null,null,null,null," panne  type  le  a "]
[null,null,null,null,null,null,null,null,null,null,null,null,null,null,null," panne  type  le  a "]
[null,null,null,null,null,null,null,null,null,null,null,null,null,null,null," panne  type  le  a "]
[null,null,null,null,null,null,null,null,null,null,null,null,null,null,null," panne  type  le  a "]
[null,null,null,null,null,null,null,null,null,null,null,null,null,null,null," panne  type  le  a "]
[null,null,null,null,null,null,null,null,null,null,null,null,null,null,null," panne  type  le  a "]
[null,null,null,null,null,null,null,null,null,null,null,null,null,null,null," panne  type  le  a "]
[null,null,null,null,null,null,null,null,null,null,null,null,null,null,null," panne  type  le  a "]
[null,null,null,null,null,null,null,null,null,null,null,null,null,null,null,{"$f":" A1032 & \" panne \" & B1032 & \" type \" & G1032  &  \" le \" & D1032  & \" a \" & C1032","v":" panne  type  le  a "}]
[null,null,null,null,null,null,null,null,null,null,null,null,null,null,null," panne  type  le  a "]
[null,null,null,null,null,null,null,null,null,null,null,null,null,null,null," panne  type  le  a "]
[null,null,null,null,null,null,null,null,null,null,null,null,null,null,null," panne  type  le  a "]
[null,null,null,null,null,null,null,null,null,null,null,null,null,null,null," panne  type  le  a "]
[null,null,null,null,null,null,null,null,null,null,null,null,null,null,null," panne  type  le  a "]
[null,null,null,null,null,null,null,null,null,null,null,null,null,null,null," panne  type  le  a "]
[null,null,null,null,null,null,null,null,null,null,null,null,null,null,null," panne  type  le  a "]
[null,null,null,null,null,null,null,null,null,null,null,null,null,null,null," panne  type  le  a "]
[null,null,null,null,null,null,null,null,null,null,null,null,null,null,null," panne  type  le  a "]
[null,null,null,null,null,null,null,null,null,null,null,null,null,null,null," panne  type  le  a "]
[null,null,null,null,null,null,null,null,null,null,null,null,null,null,null," panne  type  le  a "]
[null,null,null,null,null,null,null,null,null,null,null,null,null,null,null," panne  type  le  a "]
[null,null,null,null,null,null,null,null,null,null,null,null,null,null,null," panne  type  le  a "]
[null,null,null,null,null,null,null,null,null,null,null,null,null,null,null," panne  type  le  a "]
[null,null,null,null,null,null,null,null,null,null,null,null,null,null,null," panne  type  le  a "]
[null,null,null,null,null,null,null,null,null,null,null,null,null,null,null," panne  type  le  a "]
[null,null,null,null,null,null,null,null,null,null,null,null,null,null,null," panne  type  le  a "]
[null,null,null,null,null,null,null,null,null,null,null,null,null,null,null," panne  type  le  a "]
[null,null,null,null,null,null,null,null,null,null,null,null,null,null,null," panne  type  le  a "]
[null,null,null,null,null,null,null,null,null,null,null,null,null,null,null," panne  type  le  a "]
[null,null,null,null,null,null,null,null,null,null,null,null,null,null,null," panne  type  le  a "]
[null,null,null,null,null,null,null,null,null,null,null,null,null,null,null," panne  type  le  a "]
[null,null,null,null,null,null,null,null,null,null,null,null,null,null,null," panne  type  le  a "]
[null,null,null,null,null,null,null,null,null,null,null,null,null,null,null," panne  type  le  a "]
[null,null,null,null,null,null,null,null,null,null,null,null,null,null,null," panne  type  le  a "]
[null,null,null,null,null,null,null,null,null,null,null,null,null,null,null," panne  type  le  a "]
[null,null,null,null,null,null,null,null,null,null,null,null,null,null,null," panne  type  le  a "]
[null,null,null,null,null,null,null,null,null,null,null,null,null,null,null," panne  type  le  a "]
[null,null,null,null,null,null,null,null,null,null,null,null,null,null,null," panne  type  le  a "]
[null,null,null,null,null,null,null,null,null,null,null,null,null,null,null," panne  type  le  a "]
[null,null,null,null,null,null,null,null,null,null,null,null,null,null,null," panne  type  le  a "]
[null,null,null,null,null,null,null,null,null,null,null,null,null,null,null," panne  type  le  a "]
[null,null,null,null,null,null,null,null,null,null,null,null,null,null,null," panne  type  le  a "]
[null,null,null,null,null,null,null,null,null,null,null,null,null,null,null," panne  type  le  a "]
[null,null,null,null,null,null,null,null,null,null,null,null,null,null,null," panne  type  le  a "]
[null,null,null,null,null,null,null,null,null,null,null,null,null,null,null," panne  type  le  a "]
[null,null,null,null,null,null,null,null,null,null,null,null,null,null,null," panne  type  le  a "]
[null,null,null,null,null,null,null,null,null,null,null,null,null,null,null," panne  type  le  a "]
[null,null,null,null,null,null,null,null,null,null,null,null,null,null,null," panne  type  le  a "]
[null,null,null,null,null,null,null,null,null,null,null,null,null,null,null," panne  type  le  a "]
[null,null,null,null,null,null,null,null,null,null,null,null,null,null,null," panne  type  le  a "]
[null,null,null,null,null,null,null,null,null,null,null,null,null,null,null," panne  type  le  a "]
[null,null,null,null,null,null,null,null,null,null,null,null,null,null,null," panne  type  le  a "]
[null,null,null,null,null,null,null,null,null,null,null,null,null,null,null," panne  type  le  a "]
[null,null,null,null,null,null,null,null,null,null,null,null,null,null,null," panne  type  le  a "]
[null,null,null,null,null,null,null,null,null,null,null,null,null,null,null," panne  type  le  a "]
[null,null,null,null,null,null,null,null,null,null,null,null,null,null,null," panne  type  le  a "]
[null,null,null,null,null,null,null,null,null,null,null,null,null,null,null," panne  type  le  a "]
[null,null,null,null,null,null,null,null,null,null,null,null,null,null,null," panne  type  le  a "]
[null,null,null,null,null,null,null,null,null,null,null,null,null,null,null," panne  type  le  a "]
[null,null,null,null,null,null,null,null,null,null,null,null,null,null,null," panne  type  le  a "]
[null,null,null,null,null,null,null,null,null,null,null,null,null,null,null," panne  type  le  a "]
[null,null,null,null,null,null,null,null,null,null,null,null,null,null,null," panne  type  le  a "]
[null,null,null,null,null,null,null,null,null,null,null,null,null,null,null," panne  type  le  a "]
[null,null,null,null,null,null,null,null,null,null,null,null,null,null,null," panne  type  le  a "]
[null,null,null,null,null,null,null,null,null,null,null,null,null,null,null," panne  type  le  a "]
[null,null,null,null,null,null,null,null,null,null,null,null,null,null,null," panne  type  le  a "]
[null,null,null,null,null,null,null,null,null,null,null,null,null,null,null," panne  type  le  a "]
[null,null,null,null,null,null,null,null,null,null,null,null,null,null,null," panne  type  le  a "]
[null,null,null,null,null,null,null,null,null,null,null,null,null,null,null," panne  type  le  a "]

{"sheet":"declarationrep","index":2,"n_rows":8,"n_cols":5,"rows_kept":8,"cut":false,"hidden":false,"merged":[]}
["identifiant de la panne","jour de remise en service","heure de remise en service","intervenant ","pieces changé "]
[]
["Calandreuse panne mecanique type verin hs  le 42494 a 0.5","2016-05-04","14:00:00","00:00:00","verin "]
["MAL 90 Kg 2  panne vapeur type electrovanne HS le 18\\11\\11 a 0,793055555555556","14/11/15","08:33:00","agent blanch sale","disjoncteur 16 A"]
["MAL 25 Kg panne mecanique type verin hs  le 19/11/11 a 0,75625","14/12/09","14:56:00","AUTRE "]
["Sechoir 2 panne pneumatique type probleme distributeur le 41590 a 0,621527777777778","14/12/09","14:56:00","AUTRE "]
["MAL 90 Kg 2  panne vapeur type electrovanne HS le 18\\11\\11 a 0,793055555555556","14/12/09","14:56:00","AUTRE "]
["MAL 25 Kg panne mecanique type verin hs  le 19/11/11 a 0,75625","14/12/09","14:56:00","AUTRE "]

{"sheet":"analyse","index":3,"n_rows":0,"n_cols":0,"rows_kept":0,"cut":false,"hidden":false,"merged":[]}

{"sheet":"variables","index":4,"n_rows":9,"n_cols":6,"rows_kept":9,"cut":false,"hidden":false,"merged":[]}
["liste machine","type de pannes","mecanique","electrique ","vapeur ","pneumatique"]
["MAL 90 Kg 1 ","mecanique","roulement hs ","disjoncteur hs ","filtre bouché ","probleme distributeur"]
["MAL 90 Kg 2 ","electrique","proleme de bandes","conducteur debranché","electrovanne HS","distributeur hs "]
["MAL 25 Kg","vapeur","objet coîncé ","contacteur hs ","temperature trop basse","filtre bouché"]
["MAL 10 Kg ","pneumatique","verin hs ","fusible fondu ou disjoncteur actionné","flexible hs","pression trop faible"]
["Sechoir 1",null,"probleme benin (depannage < 5 min) ","defaut d'isolement","raccord desséré","raccord deconnecté "]
["Sechoir 2",null,null,null,null,"autre"]
["Sechoir 3"]
["Calandreuse"]

{"sheet":"intervenant","index":5,"n_rows":4,"n_cols":3,"rows_kept":4,"cut":false,"hidden":false,"merged":[]}
["stcharles","entreprise ","intervenants"]
["agent blanch prope ","XXX","personnel saint-charles"]
["agent blanch sale","XXX","entreprise exterieur"]
["technicien maintenance ","AUTRE "]

{"sheet":"piecesderechange","index":6,"n_rows":7,"n_cols":15,"rows_kept":7,"cut":false,"hidden":false,"merged":[]}
["pdr mecanique","ref : ","quantité en stock ",null,"pdr electrique ","ref : ","quantité en stock ",null,"pdrvapeur","ref :","quantité en stock ",null,"pdr pneumatique","ref :","quantité en stock"]
["courroie SPZ ",null,null,null,"disjoncteur 10 A",null,0,null,"flexible  1 M",null,null,null,"raccord diam 6"]
["poulies",null,null,null,"disjoncteur 16 A",null,0,null,"raccord ",null,null,null,"raccord diam 8"]
["verin ",null,null,null,"contacteur ","LC1D09D",1,null,"vanne",null,null,null,"raccord diam 10"]
[null,null,null,null,"fusible 10 A",null,null,null,null,null,null,null,"vanne"]
[null,null,null,null,"fusible 16 A",null,null,null,null,null,null,null,"filtre"]
[null,null,null,null,null,null,null,null,null,null,null,null,"distributeur"]